Cogmind - Beta 16.1 @@@ ROGUE MODE // 2026.02.10 @ 04:44:17 Player: cptwinky Result: Escaped! Performance ------------- Evolutions (9) 4500 Regions Visited (31) 6200 Robots Destroyed (321) 1605 Value Destroyed (14757) 14757 Prototype IDs (67) 1340 Alien Tech Used (0) 0 Bonus (15330) 15330 TOTAL SCORE: 43732 Bonus ------- High Alert Combat Kills 1389 Follower Combat Kills 5110 Entered Garrisons 600 Used RIF Installer 1000 Entered DSFs 1000 Network Hubs Disabled 200 Aligned with FarCom 300 Met Data Miner 300 Built Enhanced Grunts 300 A7 Reached Mainframe 300 Met R17 at Cetus 500 Met R17 at Research 2000 Win 3000 Friendly Fire -669 Cogmind --------- Core Integrity 1346/1600 Matter 300/300 Energy 2329/2350 System Corruption 6% Temperature Cool (15) Movement Treading (155) Location To Epsilon Eridani Parts ------- > --- POWER (3) -------- Quantum Reactor Quantum Reactor Reinforced Quantum Reactor > --- PROPULSION (6) --- Centrium Heavy Treads Biometal Heavy Treads Advanced Heavy Siege Treads > --- UTILITY (12) ----- Advanced Cooling System Advanced Coolant Injector Huge Storage Unit Superbattery Advanced Terrain Scan Processor Advanced Targeting Computer Advanced Target Analyzer Advanced Weapon Cycler Graphene Brace Advanced Force Field Relay Coupler [Sentry] (7) > --- WEAPON (4) ------- Enhanced Nova Cannon Advanced KE Penetrator Advanced KE Penetrator Advanced KE Penetrator > --- INVENTORY (25) --- Micro Antimatter Reactor Quantum Reactor Reinforced Quantum Reactor Armored Heavy Treads Matter Compressor (61) Long-range Terrain Scanner Advanced Force Field Relay Coupler [NC] (29) Relay Coupler [Sentry] (25) Advanced Variable Charge Gun Compact HERF Cannon Compact HERF Cannon Advanced KE Penetrator Remote Datajack Remote Datajack Powered Hammer Peak State ------------ > --- POWER ------------ Quantum Reactor Quantum Reactor Reinforced Quantum Reactor > --- PROPULSION ------- Improved Heavy Siege Treads Centrium Heavy Treads Biometal Heavy Treads > --- UTILITY ---------- Advanced Cooling System Huge Storage Unit Long-range Terrain Scanner Advanced Terrain Scan Processor Advanced Targeting Computer Advanced Target Analyzer Advanced Weapon Cycler Advanced Transmission Jammer Layered Heavy Armor Plating Graphene Brace Advanced Force Field > --- WEAPON ----------- Advanced KE Penetrator Advanced KE Penetrator Advanced KE Penetrator Advanced KE Penetrator > --- INVENTORY -------- Quantum Reactor Reinforced Quantum Reactor Armored Heavy Treads Advanced Cooling System Advanced Coolant Injector Superbattery Matter Compressor Layered Heavy Armor Plating Advanced Force Field Relay Coupler [NC] Relay Coupler [Sentry] Relay Coupler [Sentry] Relay Coupler [Behemoth] Advanced Variable Charge Gun Compact HERF Cannon Compact HERF Cannon Enhanced Nova Cannon Advanced KE Penetrator Advanced KE Penetrator Remote Datajack Remote Datajack Powered Hammer [Rating: 196] Favorites ----------- Power Reinforced Deuterium Engine Engine Reinforced Deuterium Engine Power Core Reinforced Fission Core Reactor Reinforced Quantum Reactor Propulsion Light Treads Treads Light Treads Utility Huge Storage Unit Device Improved Cooling System Storage Huge Storage Unit Processor Targeting Computer Hackware Hacking Suite Protection Hardened Medium Armor Plating Weapon Beam Rifle Energy Gun Beam Rifle Energy Cannon Heavy Ion Cannon Ballistic Gun Heavy Assault Rifle Ballistic Cannon Light Antimatter Cannon Launcher Advanced EMP Blaster Special Weapon Remote Datajack Impact Weapon Powered Hammer Special Melee Weapon Datajack Build | -11 -10 -10 -9 -9 -9 -8 -8 -8 -8 -7 -7 -7 -7 -7 -7 -6 -6 -6 -6 -6 -6 -6 -5 -5 -4 -4 -4 -4 -3 -2 -1 ------- Run | Yrd Mat Min Mat Min Exi Min Mat Sto Gar Fac Was Fac Low Low Dat Pro Fac Ext Cet Arc Hub Gar Fac DSF Fac Gar Fac DSF Res Res Acc Slots Evolved 18 | . . . 2 . . . 2 . . 2 . . . . . . 2 . . . . . 2 . 2 . . . 2 2 2 Power 2 | . . . . . . . . . . . . . . . . . 1 . . . . . . . . . . . 1 . . Propulsion 4 | . . . 1 . . . . . . . . . . . . . 1 . . . . . . . 2 . . . . . . Utility 10 | . . . 1 . . . 1 . . 2 . . . . . . . . . . . . 2 . . . . . 1 2 1 Weapon 2 | . . . . . . . 1 . . . . . . . . . . . . . . . . . . . . . . . 1 Parts Attached 206 | 6 7 4 15 . . 2 15 17 8 9 3 3 2 8 . . 7 11 6 2 2 9 5 8 1 9 . 3 12 24 8 Power 20 | 1 1 1 2 . . . 2 . . . . 1 . 1 . . 1 1 . . . 2 . 1 . 1 . . 2 3 . Engine 12 | 1 1 1 2 . . . 2 . . . . 1 . 1 . . . 1 . . . 2 . . . . . . . . . Core 3 | . . . . . . . . . . . . . . . . . 1 . . . . . . 1 . . . . . 1 . Reactor 5 | . . . . . . . . . . . . . . . . . . . . . . . . . . 1 . . 2 2 . Propulsion 39 | 2 1 . 3 . . . 3 8 4 2 2 . 1 . . . 2 2 2 . . . . 1 1 . . . . 4 1 Treads 39 | 2 1 . 3 . . . 3 8 4 2 2 . 1 . . . 2 2 2 . . . . 1 1 . . . . 4 1 Leg . | . . . . . . . . . . . . . . . . . . . . . . . . . . . . . . . . Wheel . | . . . . . . . . . . . . . . . . . . . . . . . . . . . . . . . . Hover . | . . . . . . . . . . . . . . . . . . . . . . . . . . . . . . . . Flight . | . . . . . . . . . . . . . . . . . . . . . . . . . . . . . . . . Utility 92 | 1 3 2 3 . . . 7 2 2 5 1 1 . 6 . . 3 5 1 2 2 7 2 5 . 4 . 3 6 14 5 Device 28 | . . . 1 . . . 1 . . . . 1 . 1 . . 2 3 . 1 . 2 2 1 . 2 . 2 2 6 1 Storage 5 | 1 1 1 . . . . . . . . . . . 1 . . . . . . 1 . . . . . . . . . . Processor 11 | . . . 1 . . . . . . 2 . . . 1 . . . . . . . 1 . 1 . . . . 1 3 1 Hackware 23 | . . . . . . . 2 . 1 2 1 . . . . . 1 . . 1 1 . . 3 . 2 . 1 2 4 2 Protection 25 | . 2 1 1 . . . 4 2 1 1 . . . 3 . . . 2 1 . . 4 . . . . . . 1 1 1 Artifact . | . . . . . . . . . . . . . . . . . . . . . . . . . . . . . . . . Weapon 55 | 2 2 1 7 . . 2 3 7 2 2 . 1 1 1 . . 1 3 3 . . . 3 1 . 4 . . 4 3 2 Energy Gun 24 | 1 . . . . . 2 1 3 2 1 . . . 1 . . 1 2 2 . . . 3 . . 3 . . 2 . . Energy Cannon 3 | . . . . . . . . . . . . . 1 . . . . 1 . . . . . . . . . . . 1 . Ballistic Gun 16 | 1 . 1 4 . . . 2 2 . . . . . . . . . . 1 . . . . . . . . . 2 1 2 Ballistic Cannon 1 | . . . . . . . . . . . . . . . . . . . . . . . . 1 . . . . . . . Launcher 2 | . . . 1 . . . . 1 . . . . . . . . . . . . . . . . . . . . . . . Special Weapon 4 | . 1 . . . . . . . . 1 . . . . . . . . . . . . . . . 1 . . . 1 . Impact Weapon 4 | . 1 . 1 . . . . 1 . . . 1 . . . . . . . . . . . . . . . . . . . Slashing Weapon . | . . . . . . . . . . . . . . . . . . . . . . . . . . . . . . . . Piercing Weapon . | . . . . . . . . . . . . . . . . . . . . . . . . . . . . . . . . Special Melee Weapon 1 | . . . 1 . . . . . . . . . . . . . . . . . . . . . . . . . . . . Unidentified Prototypes 10 | . . . 1 . . . 1 1 . . . . . . . . 1 . 4 . . . . 1 . . . . 1 . . Parts Lost 36 | . . . 1 . . . 3 5 3 1 . 4 4 3 . . 2 . . . . 1 . . . . . 1 . 1 7 Power 2 | . . . 1 . . . . . . . . . . 1 . . . . . . . . . . . . . . . . . Propulsion 5 | . . . . . . . . 1 . 1 . . 2 . . . 1 . . . . . . . . . . . . . . Utility 14 | . . . . . . . 2 1 2 . . . . 1 . . . . . . . 1 . . . . . 1 . 1 5 Weapon 15 | . . . . . . . 1 3 1 . . 4 2 1 . . 1 . . . . . . . . . . . . . 2 Highest Loss Streak 6 | . . . 1 . . . 2 2 3 1 . 2 2 2 . . 1 . . . . 1 . . . . . 1 . 1 6 To Critical Strikes . | . . . . . . . . . . . . . . . . . . . . . . . . . . . . . . . . Average Backups 22 | 4 10 13 21 24 24 25 24 24 24 24 25 22 20 19 21 21 21 22 23 24 23 22 22 23 22 23 23 22 23 22 20 Power 1 | . 1 1 1 2 2 2 2 1 1 1 2 1 1 . . . . . 1 1 1 1 1 1 1 . . . 1 1 2 Propulsion 2 | 2 2 3 3 3 3 3 2 4 4 5 5 5 5 4 4 4 2 2 2 1 1 1 1 1 . . 1 . . 1 1 Utility 11 | . 3 4 10 13 13 14 11 11 10 10 9 10 10 12 14 14 14 14 13 14 14 13 11 11 11 12 11 12 11 11 9 Weapon 5 | . 3 3 5 5 5 5 6 5 6 6 6 4 2 2 3 2 2 3 6 7 6 6 7 8 8 8 8 8 8 6 5 Tool/Special . | . . . . . . . . . . . . . . . . . . . . . . . . . . . . . . . . Unused Backups 54 | . 4 2 8 . 2 . 1 4 2 . . . . . . . 1 2 3 . . 2 . 1 . 2 1 1 5 2 11 Power 9 | . . . 2 . 1 . 1 . . . . . . . . . . . . . . . . . . . . . 2 . 3 Propulsion 8 | . 2 1 . . . . . 1 . . . . . . . . . . 2 . . . . . . . . 1 . . 1 Utility 23 | . . 1 1 . 1 . . 3 2 . . . . . . . 1 2 1 . . 2 . 1 . 1 . . 1 2 4 Weapon 14 | . 2 . 5 . . . . . . . . . . . . . . . . . . . . . . 1 1 . 2 . 3 Tool/Special . | . . . . . . . . . . . . . . . . . . . . . . . . . . . . . . . . Average Slot Usage (%) 94 | . 95 100 99 100 100 100 99 99 98 99 100 99 96 95 93 99 94 99 96 85 86 85 86 87 84 82 84 83 84 84 83 Engine 8 | . 14 14 11 11 11 11 9 9 9 7 7 7 7 6 7 7 6 9 13 13 13 13 11 8 5 4 . . . . . Reactor 1 | . . . . . . . . . . . . . . . . . . . . . . . . . . . 5 5 8 9 12 Treads 23 | . 28 28 33 33 33 33 27 27 27 23 23 23 22 23 23 23 26 26 22 13 13 13 11 11 15 15 15 15 14 13 12 Device 10 | . . . 2 . . . 1 9 9 6 7 7 7 8 15 15 12 13 20 20 18 14 21 22 21 19 21 20 22 18 20 Storage 7 | . 14 14 11 11 11 11 9 9 9 7 7 7 7 7 7 7 6 6 6 6 6 6 5 5 5 5 5 5 4 4 4 Processor 5 | . . . 8 11 11 11 3 . . 14 15 15 15 9 7 7 6 2 . . . 4 5 5 5 5 5 5 4 7 11 Hackware 5 | . . . . . . . 6 9 8 7 14 11 7 7 7 7 6 6 6 6 7 6 5 5 5 5 5 5 4 9 3 Protection 8 | . 9 14 11 11 11 11 15 9 8 7 . 3 7 9 7 7 6 9 6 5 6 6 5 5 5 5 5 5 3 3 2 Energy Gun 10 | . 13 . . . . . 1 17 18 22 15 21 17 12 1 14 11 12 19 20 17 18 14 17 15 14 15 14 13 . . Ballistic Gun 8 | . 13 27 21 22 15 21 23 9 3 . . . . . . . . . . . . . . . . . . . . 12 14 Peak Build Rating 196 | 6 8 9 20 20 21 21 28 29 29 36 36 35 39 47 44 45 54 61 102 103 103 103 108 118 131 139 139 140 164 183 196 Average Rating 61 | 5 7 8 16 19 19 21 26 26 27 32 33 32 33 40 42 44 48 57 74 102 101 98 107 111 130 131 139 137 155 174 191 On Entrance 65 | . 6 8 9 19 20 21 21 27 27 27 36 32 33 39 44 42 45 53 61 101 103 97 97 108 115 131 139 139 138 161 183 Avg Prop Armor Cover (%) 20 | . . . . . . . . . . . . . . . . . . . . 20 . . . . . . . . . . . Naked Turns . | . . . . . . . . . . . . . . . . . . . . . . . . . . . . . . . . Heaviest Build 216 | 12 30 90 102 102 102 103 112 110 110 107 107 108 112 128 112 119 133 152 144 144 149 144 139 155 155 170 170 170 195 209 216 Greatest Support 240 | 40 40 40 60 60 60 60 60 60 60 60 60 60 60 60 60 60 80 80 160 160 160 160 160 160 240 240 240 240 240 240 235 Greatest Overweight (x) 47 | . . 2 1 1 1 1 1 1 1 1 1 1 1 2 1 1 1 1 1 47 . . . . . . . . 1 1 . Average Overweight (x) . | . . . 1 1 1 1 1 1 1 1 1 1 1 1 1 1 1 1 . 11 . . . . . . . . . . . Largest Inventory Capacity 25 | 8 15 25 25 25 25 25 25 25 25 25 25 25 25 25 25 25 25 25 25 25 25 25 25 25 25 25 25 25 25 25 25 Average Capacity 24 | 7 12 16 25 25 25 25 25 25 25 25 25 25 25 25 25 25 25 25 25 25 25 25 25 25 25 25 25 25 25 25 25 Most Carried 25 | 7 15 19 25 25 25 25 25 25 25 25 25 25 22 23 24 24 24 25 25 25 25 25 25 25 25 25 25 25 25 25 25 Average Carried 23 | 4 10 15 22 24 24 25 24 24 24 24 24 22 20 20 23 22 22 23 24 24 24 23 24 24 23 24 24 24 24 24 21 Final Capacity 25 | 8 15 25 25 25 25 25 25 25 25 25 25 25 25 25 25 25 25 25 25 25 25 25 25 25 25 25 25 25 25 25 25 Final Carried 25 | 7 15 19 24 25 25 25 24 25 25 25 25 22 21 23 24 22 20 25 25 25 24 25 25 25 23 25 25 24 25 25 17 Class Distribution -------------------- 33% | Scavenger-Tank 25% | Mutant 20% | Scavenger-Skirmisher 6% | Commander-Tank 6% | Scavenger-Mutant Dominant Class ---------------- Mutant | -10/Materials Mutant | -10/Mines Mutant | -9/Materials Mutant | -9/Mines Mutant | -9/Exiles Mutant | -8/Mines Tank | -8/Materials Scavenger-Skirmisher | -8/Storage Scavenger-Skirmisher | -8/Garrison Scavenger-Skirmisher | -7/Factory Scavenger-Skirmisher | -7/Waste Scavenger-Skirmisher | -7/Factory Scavenger-Gunner | -7/Lower Caves Scavenger-Tank | -7/Lower Caves Scavenger-Mutant | -7/Data Miner Scavenger-Tank | -6/Proximity Caves Scavenger-Tank | -6/Factory Scavenger-Tank | -6/Extension Commander-Tank | -6/Cetus Commander-Tank | -6/Archives Commander-Tank | -6/Hub_04(d) Scavenger-Tank | -6/Garrison Scavenger-Tank | -5/Factory Scavenger-Tank | -5/DSF Scavenger-Tank | -4/Factory Scavenger-Tank | -4/Garrison Commander-Tank | -4/Factory Commander-Tank | -4/DSF Scavenger-Tank | -3/Research Scavenger-Tank | -2/Research Scavenger-Tank | -1/Access Resources | -11 -10 -10 -9 -9 -9 -8 -8 -8 -8 -7 -7 -7 -7 -7 -7 -6 -6 -6 -6 -6 -6 -6 -5 -5 -4 -4 -4 -4 -3 -2 -1 ----------- Run | Yrd Mat Min Mat Min Exi Min Mat Sto Gar Fac Was Fac Low Low Dat Pro Fac Ext Cet Arc Hub Gar Fac DSF Fac Gar Fac DSF Res Res Acc Matter Collected 9860 | 259 393 117 506 225 . 148 1178 836 691 417 . 243 383 116 . 273 399 226 100 40 75 209 . 189 15 230 . 60 210 1417 905 Remotely . | . . . . . . . . . . . . . . . . . . . . . . . . . . . . . . . . Salvage Created 14935 | 35 249 69 1006 285 . 89 1174 2136 822 343 . 212 555 452 . 227 556 890 80 176 89 511 . 246 74 895 . 174 655 2168 767 Parts 717 | 4 25 5 53 17 . 14 69 100 46 20 . 1 20 14 . 6 11 42 1 11 6 27 . 8 4 19 . 2 17 120 55 Haulers Intercepted 17 | . 2 . 5 . . . 3 4 . 1 . 1 . . . . . . . . . . . . . . . . . 1 . Recyclers Shooed 11 | . . . 5 . . . 1 . . 1 . . . . . . . 1 . . . . . . . . . . . 2 1 Parts Field Recycled . | . . . . . . . . . . . . . . . . . . . . . . . . . . . . . . . . Retrieved Matter . | . . . . . . . . . . . . . . . . . . . . . . . . . . . . . . . . Parts Self-Destructed 28 | . . . . . . . . . . . . . 12 12 . 4 . . . . . . . . . . . . . . . Prevented 12 | . . . . . . . . . . . . . 6 4 . 2 . . . . . . . . . . . . . . . Parts Restored . | . . . . . . . . . . . . . . . . . . . . . . . . . . . . . . . . Kills | -11 -10 -10 -9 -9 -9 -8 -8 -8 -8 -7 -7 -7 -7 -7 -7 -6 -6 -6 -6 -6 -6 -6 -5 -5 -4 -4 -4 -4 -3 -2 -1 ------- Run | Yrd Mat Min Mat Min Exi Min Mat Sto Gar Fac Was Fac Low Low Dat Pro Fac Ext Cet Arc Hub Gar Fac DSF Fac Gar Fac DSF Res Res Acc Combat Hostiles Destroyed 248 | . 7 4 14 5 . 6 25 34 25 8 . 3 12 7 . 3 7 11 1 2 1 8 . 3 1 12 . 1 9 26 13 Melee 1 | . . . . . . . . . . . . . . . . . 1 . . . . . . . . . . . . . . Guns 173 | . 7 4 12 5 . 1 16 28 13 2 . 2 6 3 . . 3 6 1 2 1 7 . 2 1 7 . 1 7 26 10 Cannons 13 | . . . . . . . . . . . . . . 3 . 1 1 5 . . . . . . . . . . . . 3 AOE 43 | . . . 2 . . 5 9 4 10 5 . . 6 . . 2 . . . . . . . . . . . . . . . Classes Destroyed 20 | 1 5 . 5 . . . 2 1 2 1 . . . . . 2 . . . . . 1 . . . . . . . . . Worker 13 | . . . 1 1 . 1 1 5 . 1 . . . . . . 1 . . . . . . . . . . . . 2 . Builder 13 | . . . 3 . . . 4 1 . 1 . . . . . . . . . . 1 . . . . . . . . 3 . Tunneler 3 | 2 . . . . . . . 1 . . . . . . . . . . . . . . . . . . . . . . . Hauler 17 | . 2 . 5 . . . 3 4 . 1 . 1 . . . . . . . . . . . . . . . . . 1 . Recycler 9 | . . . 1 2 . . 1 3 . . . . . . . . 1 1 . . . . . . . . . . . . . Mechanic 2 | . . . . . . . . 2 . . . . . . . . . . . . . . . . . . . . . . . Operator 6 | . 1 . 1 . . . 2 . . . . . . . . . . 1 . 1 . . . . . . . . . . . Drone 2 | . . . . . . . . . . . . . . . . 2 . . . . . . . . . . . . . . . Watcher 8 | . 1 . . . . . 2 1 . . . . . . . . . 1 . . . . . . . . . . . 2 1 Swarmer 45 | . 6 4 . 3 . 6 . 1 9 2 . . 4 . . . . 1 . . . 1 . . . . . . . 3 5 Grunt 94 | . 1 . 10 2 . 1 17 16 7 4 . . 7 5 . . 4 1 . . . 1 . . . 7 . . 7 4 . Brawler 5 | . . . . . . . 1 2 . . . . . 2 . . . . . . . . . . . . . . . . . Duelist 2 | . . . 1 . . . . . . . . . . . . . . . . . . . . . . . . . . 1 . Sentry 52 | . . . 3 . . . 6 13 3 . . 1 1 . . . . 7 . 2 . 2 . 2 1 4 . . 2 5 . Specialist 6 | . . . . . . . . . 3 . . . . . . . 2 . . . . . . . . . . . . 1 . Hunter 13 | . . . . . . . 1 2 . . . 2 . . . 1 . 2 . . 1 2 . . . . . . . 2 . Programmer 21 | . . . . . . . . . 3 1 . . . . . . 1 . . . . 1 . . . . . . . 8 7 Heavy 4 | . . . . . . . . . . 1 . . . . . . . . . . . . . 1 . . . . . 2 . Behemoth 3 | . . . . . . . . . . . . . . . . . . . . . . 1 . . . 1 . . . . 1 Cetus Guard 1 | . . . . . . . . . . . . . . . . . . . 1 . . . . . . . . . . . . Tinkerer 1 | . . . . . . . . . . . . . . . . 1 . . . . . . . . . . . . . . . Thug 2 | . . . . . . . . . . . . . . 1 . . . . . . . . . . . . . 1 . . . Best Kill Streak 8 | 1 5 3 3 4 . 5 8 8 8 6 . 2 4 4 . 1 3 4 1 2 2 3 . 1 1 3 . 1 2 5 8 Combat Bots Only 8 | . 3 3 3 3 . 4 5 5 8 5 . 2 4 4 . 1 2 4 1 2 1 3 . 1 1 3 . 1 2 3 8 Max Kills in Single Turn 4 | 1 1 1 2 2 . 3 2 3 3 4 . 1 2 1 . 1 1 1 1 1 1 1 . 1 1 1 . 1 2 2 2 Gunslinging 1 | . . . . 1 . . . 1 . . . . 1 . . . . . . . . . . . . . . . 1 . 1 Exploded 3 | . . . 2 . . 3 2 2 3 3 . . 2 . . 1 . . . . . . . . . . . . . . . Melee 1 | . . . . . . . . . . . . . . . . . 1 . . . . . . . . . . . . . . Uniques/NPCs Destroyed . | . . . . . . . . . . . . . . . . . . . . . . . . . . . . . . . . Combat | -11 -10 -10 -9 -9 -9 -8 -8 -8 -8 -7 -7 -7 -7 -7 -7 -6 -6 -6 -6 -6 -6 -6 -5 -5 -4 -4 -4 -4 -3 -2 -1 -------- Run | Yrd Mat Min Mat Min Exi Min Mat Sto Gar Fac Was Fac Low Low Dat Pro Fac Ext Cet Arc Hub Gar Fac DSF Fac Gar Fac DSF Res Res Acc Hostile Shots Fired 1459 | . 23 30 41 14 . 9 86 155 74 27 . 60 69 51 . . 39 120 16 6 10 63 . 25 4 68 . 33 35 147 254 Missed 457 | . 4 8 9 4 . 2 30 53 28 4 . 26 24 17 . . 14 51 6 2 5 27 . 8 3 17 . 14 13 53 35 Hits 1002 | . 19 22 32 10 . 7 56 102 46 23 . 34 45 34 . . 25 69 10 4 5 36 . 17 1 51 . 19 22 94 219 Melee 6 | . . . . . . . . . . . . . . 4 . . . . . . . . . . . . . . 1 1 . Projectile 996 | . 19 22 32 10 . 7 56 102 46 23 . 34 45 30 . . 25 69 10 4 5 36 . 17 1 51 . 19 21 93 219 AOE 1 | . . . . . . . . . . . . . . . . . . . . . . . . . . . . . 1 . . Critical Strikes 34 | . . . . 1 . . 2 1 2 1 . . . 3 . . . . . . . . . . . 3 . 6 1 9 5 Actively Blocked 13 | . . . . . . . . . . . . . . . . . . . . . . . . . . . . . 1 7 5 Part Disruptions 3 | . . . . . . . . . 1 . . . . . . . . . . . . . . . . . . . . 2 . Damage Taken 15429 | . 150 206 465 109 . 96 873 1659 848 674 . 280 514 609 . 7 473 380 176 116 203 571 . 412 23 666 . 276 343 1461 3839 Core 1292 | . 14 10 56 26 . 20 20 219 60 136 . 45 25 68 . . 57 46 . 37 . . . 58 . 22 . 16 33 70 254 Absorbed by Shields 4346 | . . . . . . . . . . . . 64 . . . . 67 213 103 30 36 77 . 196 . 415 . 207 357 1511 1070 Reduced by Siege Mode 324 | . . . . . . . . . . . . . . . . . . . . . . . . . . . . . . 12 312 Redirected to Shielding 3 | . 3 . . . . . . . . . . . . . . . . . . . . . . . . . . . . . . Ignored by Resistances 54 | . . . . . . . . . . . . . . . . . 13 41 . . . . . . . . . . . . . Regen/Repaired (Parts) 1186 | . 48 . 206 . . . . . . . . 224 . . . . . . . . . 296 . 87 16 125 . 54 130 . . Core Remaining (%) 83 | 100 . 90 . . . 74 . . 45 . . . . . . 60 . . . . . 83 . 94 . . . 96 97 95 84 Volleys Fired 853 | 5 30 11 59 8 . 5 61 110 80 19 11 13 20 32 1 17 15 31 9 23 11 25 . 11 3 55 1 9 39 89 50 Largest 4 | 2 2 2 2 2 . 2 3 3 3 3 1 3 3 3 1 3 3 3 3 3 3 3 . 3 3 3 3 3 3 3 4 Hottest 241 | 70 100 40 46 46 . 46 102 177 177 186 5 186 177 177 5 196 220 235 241 236 236 240 . 225 225 225 225 225 225 120 225 Shots Fired 2075 | 10 59 22 117 15 . 6 148 310 157 45 11 38 46 52 1 34 37 90 23 35 21 67 . 33 9 127 3 25 113 253 168 Gun 1845 | 10 58 22 116 14 . 2 132 303 113 39 . 38 36 33 . 28 27 58 23 35 15 65 . 33 9 115 3 24 113 246 135 Cannon 95 | . . . . . . . . . . . . . 4 15 . 2 8 31 . . 5 . . . . . . . . 1 29 Launcher 89 | . . . 1 1 . 4 16 7 44 2 . . 6 4 . 4 . . . . . . . . . . . . . . . Special 46 | . 1 . . . . . . . . 4 11 . . . 1 . 2 1 . . 1 2 . . . 12 . 1 . 6 4 Kinetic 842 | 5 29 22 116 14 . 2 115 125 33 . . . . . . . . . . . . . . . . . . . . 246 135 Thermal 1099 | 5 30 . . . . . 17 178 80 39 . 38 40 48 . 30 35 89 23 35 20 65 . 33 9 115 3 24 113 1 29 Explosive 35 | . . . 1 1 . 4 16 5 6 2 . . . . . . . . . . . . . . . . . . . . . Electromagnetic 54 | . . . . . . . . 2 38 . . . 6 4 . 4 . . . . . . . . . . . . . . . Robot Hit Streak 35 | 3 9 7 13 8 . 1 11 35 21 21 13 9 11 12 5 8 13 13 13 9 8 11 . 9 8 23 4 8 14 26 32 Robot Miss Streak 4 | 1 3 2 2 2 . 1 3 4 2 2 2 2 2 4 . 1 1 4 2 3 2 2 . 2 . 3 . 2 3 4 2 Penetration Max 1 | . . . . . . . . . . . . . . . . . . . . . . . . . . . . . . 1 1 Secondary Targets 30 | . . 1 . 2 . . 1 6 3 . . . 2 . . . . . 1 . . 3 . . . 1 . . 2 2 6 Max Gunslinging Chain 2 | . . 1 . 1 . . 1 1 1 . . . 1 . . . . . 1 . . 1 . . . 1 . . 1 1 2 Shots Hit Robots 1454 | 6 35 13 90 9 4 2 94 232 85 35 7 28 35 32 1 21 36 53 19 26 13 48 . 22 8 93 3 8 87 174 135 Core Hits 650 | 2 14 4 36 7 . 9 95 95 39 20 . 10 22 18 . 9 11 32 14 8 4 12 . 5 4 28 1 4 37 78 32 Critical Kills 16 | . . . . . . . . . . . . . . . . . . 1 1 . . 1 . . . . . . . 9 4 Critical Parts Destroyed 34 | . . . 1 . . . . . . . . . . . . . 2 1 1 1 . . . . . . . . . 18 10 Critical Strikes 120 | . 1 . 1 . . . 2 9 8 1 . 4 1 . . 2 4 2 2 3 2 3 . 4 . 10 . . 7 35 19 Burn 57 | . 1 . . . . . 2 9 8 1 . 4 1 . . 2 2 . . 2 2 2 . 4 . 10 . . 7 . . Destroy 60 | . . . 1 . . . . . . . . . . . . . . 2 2 1 . 1 . . . . . . . 34 19 Smash 3 | . . . . . . . . . . . . . . . . . 2 . . . . . . . . . . . . 1 . Melee Attacks 101 | . 3 . 7 . 4 . 14 7 19 3 . 4 . . . . 18 . . . 2 2 . . . 5 . . 1 12 . Impact 96 | . 3 . 6 . . . 14 7 19 3 . 4 . . . . 18 . . . 2 2 . . . 5 . . 1 12 . Slashing . | . . . . . . . . . . . . . . . . . . . . . . . . . . . . . . . . Piercing . | . . . . . . . . . . . . . . . . . . . . . . . . . . . . . . . . Sneak Attacks 11 | . . . 3 . 4 . . . . . . . . . . . 2 . . . . . . . . 1 . . . 1 . Combat Hostiles . | . . . . . . . . . . . . . . . . . . . . . . . . . . . . . . . . Follow-up Attacks . | . . . . . . . . . . . . . . . . . . . . . . . . . . . . . . . . Damage Inflicted 36842 | 72 490 205 1644 299 . 317 3467 4293 2129 908 . 411 922 824 . 551 1100 1494 460 651 286 1081 . 550 202 2053 66 155 2019 5774 4419 Guns 27854 | 72 477 177 1337 139 . 13 1368 3507 1365 464 . 411 461 326 . 331 437 830 460 651 223 1081 . 550 175 1952 66 155 2019 5523 3284 Cannons 2239 | . . . . . . . . . . . . . . 276 . 53 135 652 . . 63 . . . . . . . . . 1060 Explosions 5466 | . . . 115 113 . 303 2069 736 764 430 . . 461 222 . 167 . . . . . . . . . . . . . 86 . Melee 843 | . . . 130 . . . . 26 . . . . . . . . 528 . . . . . . . . 101 . . . 58 . Ramming 440 | . 13 28 62 47 . 1 30 24 . 14 . . . . . . . 12 . . . . . . 27 . . . . 107 75 Kinetic 13841 | 47 256 177 1337 139 . 13 1238 1443 384 . . . . . . . . . . . . . . . . . . . . 5523 3284 Thermal 16394 | 25 221 . . 73 . . 130 2064 981 464 . 411 530 602 . 384 572 1482 460 651 286 1081 . 550 175 1952 66 155 2019 . 1060 Explosive 4295 | . . . 115 40 . 303 1991 716 700 430 . . . . . . . . . . . . . . . . . . . . . Electromagnetic 1029 | . . . . . . . 78 20 64 . . . 392 222 . 167 . . . . . . . . . . . . . 86 . Impact 843 | . . . 130 . . . . 26 . . . . . . . . 528 . . . . . . . . 101 . . . 58 . Slashing . | . . . . . . . . . . . . . . . . . . . . . . . . . . . . . . . . Piercing . | . . . . . . . . . . . . . . . . . . . . . . . . . . . . . . . . Highest Corruption 13 | . . . . . . . 3 4 7 1 13 13 13 13 13 13 2 2 2 2 1 1 . . . . . . 1 6 6 Average Corruption 5 | . . . . . . . 2 3 5 1 7 13 13 13 13 13 2 2 2 1 1 1 . . . . . . 1 5 4 Corruption Purged 8 | . . . . . . . . . . . . . . . . . . . . 2 . . . . . . . . . 6 . Corruption Blocked . | . . . . . . . . . . . . . . . . . . . . . . . . . . . . . . . . Effects 363 | . . . . . . . 25 37 83 2 6 36 28 35 5 46 5 22 1 3 1 4 . . . . . . 1 19 4 Message Errors 74 | . . . . . . . 7 7 18 . . 4 3 8 4 9 . 7 . 1 . . . . . . . . 1 3 2 Matter Fused 99 | . . . . . . . 7 10 21 . 2 9 7 8 1 16 3 4 1 1 . 2 . . . . . . . 7 . Heat Flow Errors 53 | . . . . . . . 1 5 14 2 . 5 6 10 . 3 . 4 . . . 1 . . . . . . . 2 . Energy Discharges 40 | . . . . . . . 2 3 7 . 1 6 3 4 . 6 2 1 . . 1 . . . . . . . . 4 . Parts Rejected 5 | . . . . . . . . 2 1 . 1 . 1 . . . . . . . . . . . . . . . . . . Parts Fused 2 | . . . . . . . 1 . . . . 1 . . . . . . . . . . . . . . . . . . . Data Loss (minor) 41 | . . . . . . . 6 3 15 . 2 4 1 1 . 5 . 2 . . . 1 . . . . . . . . 1 Data Loss (major) 17 | . . . . . . . 1 2 1 . . 1 3 1 . 3 . 3 . . . . . . . . . . . 1 1 Misfires 14 | . . . . . . . . 2 3 . . 1 3 2 . 2 . . . . . . . . . . . . . 1 . Alerts 10 | . . . . . . . . 1 2 . . 3 . . . 2 . 1 . 1 . . . . . . . . . . . Weapon Failures 8 | . . . . . . . . 2 1 . . 2 1 1 . . . . . . . . . . . . . . . 1 . Overload Shots 2 | . . . . . . . . . . . . . . . . . . . 1 . . 1 . . . . . . . . . Overflow Damage 605 | . . . 70 3 . 10 59 58 31 11 . . 1 . . 76 203 17 . . 1 . . . . . . . . 24 41 Projectiles 69 | . . . . . . . . . . . . . . . . 10 . 17 . . 1 . . . . . . . . . 41 Explosions 232 | . . . . . . 10 59 54 31 11 . . 1 . . 66 . . . . . . . . . . . . . . . Melee 304 | . . . 70 3 . . . 4 . . . . . . . . 203 . . . . . . . . . . . . 24 . Knockbacks 8 | . . . 1 . . . . 1 . . . . . . . . 5 . . . . . . . . . . . . 1 . Impact 7 | . . . 1 . . . . 1 . . . . . . . . 5 . . . . . . . . . . . . . . Kinetic . | . . . . . . . . . . . . . . . . . . . . . . . . . . . . . . . . Secondary 1 | . . . . . . . . . . . . . . . . . . . . . . . . . . . . . . 1 . Self-Inflicted Damage 359 | . . . . 24 . 27 28 42 183 . . . 16 32 . 7 . . . . . . . . . . . . . . . Shots 21 | . . . . 1 . 1 2 1 12 . . . 1 2 . 1 . . . . . . . . . . . . . . . Rammed 41 | . 3 7 11 3 . 1 2 4 . 2 . . . . . . . 2 . . . . . . 3 . . . . 2 1 Targets Rammed 49 | . 4 7 12 5 . 1 2 5 . 3 . . . . . . . 2 . . . . . . 3 . . . . 3 2 Kicked . | . . . . . . . . . . . . . . . . . . . . . . . . . . . . . . . . Crushed 8 | . 1 . 1 2 . . . 1 . 1 . . . . . . . . . . . . . . . . . . . 1 1 Highest Temperature 379 | 27 72 . 20 18 . 12 270 264 248 163 . 213 210 255 . 188 379 341 102 81 54 144 . . 12 30 9 . 96 257 258 Average Temperature 59 | 12 23 . 8 9 . 9 76 50 69 56 . 44 79 102 . 38 148 75 31 35 28 39 . . 6 9 6 . 29 56 128 Received Heat Transfer 2695 | . 12 . 204 6 . . 423 567 261 54 . 39 195 306 . . 107 95 . 6 . 121 . 18 . 120 . 17 48 92 4 Effects 3 | . . . . . . . . . . . . . . . . . 1 1 . . . . . . . . . . . . 1 Shutdowns 1 | . . . . . . . . . . . . . . . . . . 1 . . . . . . . . . . . . . Energy Bleed 1 | . . . . . . . . . . . . . . . . . . . . . . . . . . . . . . . 1 Damage (minor) 1 | . . . . . . . . . . . . . . . . . 1 . . . . . . . . . . . . . . Siege Activations 5 | . . . . . . . . . . . . . . . . . . . . . . . . . . . . . . 1 4 Total Turns 98 | . . . . . . . . . . . . . . . . . . . . . . . . . . . . . . 20 78 Longest Duration 47 | . . . . . . . . . . . . . . . . . . . . . . . . . . . . . . 20 47 Martial Activations . | . . . . . . . . . . . . . . . . . . . . . . . . . . . . . . . . Shielding Activations . | . . . . . . . . . . . . . . . . . . . . . . . . . . . . . . . . Robots Disrupted . | . . . . . . . . . . . . . . . . . . . . . . . . . . . . . . . . Combat Hostiles . | . . . . . . . . . . . . . . . . . . . . . . . . . . . . . . . . Robots Corrupted 8 | . . . 2 1 . . . 1 . . . . . 1 . . 3 . . . . . . . . . . . . . . Combat Hostiles 2 | . . . . . . . . . . . . . . 1 . . 1 . . . . . . . . . . . . . . Parts Fried 7 | . . . 2 . . . . 2 . . . . . 2 . . 1 . . . . . . . . . . . . . . Impact Corruptions 14 | . . . 4 1 . . . 1 . . . . . . . . 7 . . . . . . . . . . . . 1 . Robots Melted 15 | . . . . . . . . 2 1 1 . 1 . . . . 1 . . . . 1 . 1 . 5 . . 2 . . Combat Hostiles 15 | . . . . . . . . 2 1 1 . 1 . . . . 1 . . . . 1 . 1 . 5 . . 2 . . Parts Melted 104 | . . . . . . . . 16 10 6 . 6 3 1 . 1 8 2 . 1 1 6 . 1 . 23 . 2 16 . 1 Heat Transferred 37627 | 74 703 . . 100 . . 481 5735 2849 1184 . 1332 1284 1184 . 925 1073 2314 831 1184 618 1813 . 1650 400 5450 150 350 5186 . 757 Parts Sabotaged . | . . . . . . . . . . . . . . . . . . . . . . . . . . . . . . . . Parts Stolen . | . . . . . . . . . . . . . . . . . . . . . . . . . . . . . . . . Parts Stripped . | . . . . . . . . . . . . . . . . . . . . . . . . . . . . . . . . Power Chain Reactions 4 | . . . . . . . . 1 1 . . . 2 . . . . . . . . . . . . . . . . . . Alert | -11 -10 -10 -9 -9 -9 -8 -8 -8 -8 -7 -7 -7 -7 -7 -7 -6 -6 -6 -6 -6 -6 -6 -5 -5 -4 -4 -4 -4 -3 -2 -1 ------- Run | Yrd Mat Min Mat Min Exi Min Mat Sto Gar Fac Was Fac Low Low Dat Pro Fac Ext Cet Arc Hub Gar Fac DSF Fac Gar Fac DSF Res Res Acc Maximum Alert Level 5 | . . . . . . . 2 2 5 4 1 . . . . . 1 2 2 1 2 4 3 3 2 4 3 1 2 2 2 Low Security (%) 47 | 100 100 100 100 100 . 100 50 61 1 . 53 100 . . . . 67 64 . 62 17 . . . 60 4 . . . 25 . Level 1 19 | . . . . . . . 39 13 6 . 46 . . . . . 32 13 64 37 80 19 . . 3 6 18 100 18 57 98 Level 2 16 | . . . . . . . 9 25 18 61 . . . . . . . 21 35 . 1 6 . 88 35 10 5 . 80 17 1 Level 3 7 | . . . . . . . . . 28 32 . . . . . . . . . . . 29 100 11 . 33 75 . . . . Level 4 6 | . . . . . . . . . 23 5 . . . . . . . . . . . 44 . . . 45 . . . . . Level 5 2 | . . . . . . . . . 21 . . . . . . . . . . . . . . . . . . . . . . High Security . | . . . . . . . . . . . . . . . . . . . . . . . . . . . . . . . . Max Security . | . . . . . . . . . . . . . . . . . . . . . . . . . . . . . . . . Peak Influence 2149 | 5 85 60 140 124 . 120 437 637 2149 1127 234 107 . . . . 302 539 457 351 422 1492 783 839 440 1523 878 300 633 483 403 Initial 1127 | . . 12 . 54 . . . 181 162 1127 234 107 . . . . 300 68 270 154 . 206 783 520 440 123 799 270 149 261 287 Average 377 | . 23 6 39 12 . 28 163 267 1139 738 195 35 . . . . 183 166 378 154 283 931 763 639 253 995 731 279 474 266 320 Influence Increases 15268 | 10 240 115 606 156 . 239 884 1322 2217 252 . 222 285 175 . 60 529 856 357 227 671 1316 . 339 176 1520 117 56 957 936 428 Destroy 0b10 Robot/C 6980 | . 140 80 280 100 . 140 520 720 680 160 . 60 240 140 . 20 140 460 160 80 220 540 . 140 40 600 20 . 480 540 280 Destroy 0b10 Robot/NC 470 | 10 20 . 55 20 . 5 70 90 . 15 . 5 . . . 15 10 35 10 10 25 . . . 5 . 5 . 10 45 10 Destroy Leader 1212 | . 36 10 100 10 . 20 150 222 20 32 . 22 30 20 . 10 30 46 . . 62 40 . 20 22 30 10 . 60 146 64 Allied During Kill 2684 | . . . . . . 20 4 55 96 . . . . . . . . 266 168 90 307 580 . 160 67 599 35 . 228 7 2 Trap Triggered on 0b10 60 | . . 10 50 . . . . . . . . . . . . . . . . . . . . . . . . . . . . Successful Hack 327 | . 12 . 19 . . . 4 19 14 28 . 54 . . . . 28 23 . . . 20 . . 10 . 12 . 36 48 . Select Force Hacks 60 | . . . 60 . . . . . . . . . . . . . . . . . . . . . . . . . . . . Disable Machine 570 | . 15 15 15 15 . . 45 105 15 . . 45 . . . . . . 15 45 15 45 . . 30 . 15 . 45 45 45 Anti-Garrison Action 1500 | . . . . . . . . . 1250 . . . . . . . . . . . . 50 . . . 200 . . . . . Destroy Structure 865 | . 2 . 12 11 . 39 91 66 142 17 . 36 . . . . 6 26 4 2 27 41 . 4 2 91 20 56 98 45 27 Advance Influence 300 | . . . . . . . . . . . . . . . . . 300 . . . . . . . . . . . . . . Partial Spotted 15 | . . . . . . . . . . . . . . . . . . . . . . . . . . . . . . 15 . Lose Combat Pursuer 225 | . 15 . 15 . . 15 . 45 . . . . 15 15 . 15 15 . . . 15 . . 15 . . . . . 45 . Influence Decreases 14873 | 10 207 148 466 296 . 239 454 1502 318 1732 515 336 325 175 . 60 388 514 453 614 376 119 749 243 839 173 1254 176 758 922 512 Entered New Map 5308 | . . 21 . 86 . . . 249 88 1022 435 47 15 . . . . 73 213 233 . 89 709 223 399 53 724 116 117 204 192 Time Decay 6732 | 10 207 127 461 210 . 239 424 583 . 380 80 269 282 165 . 60 368 341 180 381 276 . 40 . 140 . 80 . 571 628 230 Lost Part 303 | . . . 5 . . . 30 50 30 10 . 20 28 10 . . 20 . . . . 10 . . . . . 10 . 10 70 Lost Ally 880 | . . . . . . . . 20 200 20 . . . . . . . 100 60 . 100 20 . 20 . 120 . 50 70 80 20 Purge Threat 1650 | . . . . . . . . 600 . 300 . . . . . . . . . . . . . . 300 . 450 . . . . Squads Dispatched 52 | . 1 . 3 . . . 7 9 . 4 . 2 . . . . 3 2 . . 4 . . . 2 . . . 5 8 2 Investigation 13 | . . . 2 . . . 3 2 . 1 . 1 . . . . 1 . . . . . . . 2 . . . 1 . . Extermination 9 | . . . . . . . . . . 1 . 1 . . . . 1 . . . . . . . . . . . . 5 1 Reinforcement 23 | . 1 . 1 . . . 3 2 . 2 . . . . . . 1 2 . . 3 . . . . . . . 4 3 1 Assault 1 | . . . . . . . . 1 . . . . . . . . . . . . . . . . . . . . . . . Garrison 6 | . . . . . . . 1 4 . . . . . . . . . . . . 1 . . . . . . . . . . Intercept . | . . . . . . . . . . . . . . . . . . . . . . . . . . . . . . . . Searches Triggered . | . . . . . . . . . . . . . . . . . . . . . . . . . . . . . . . . Construction Impeded 3 | . . . . . . . 1 . . . . . . . . . . . . . 1 . . . . . . . . . 1 Haulers Reinforced 4 | . . . . . . . . . . 1 . . . . . . . . . . 1 . . . . . . . 2 . . Active Scanning Responses . | . . . . . . . . . . . . . . . . . . . . . . . . . . . . . . . . Cargo Convoy Interrupts . | . . . . . . . . . . . . . . . . . . . . . . . . . . . . . . . . Stealth | -11 -10 -10 -9 -9 -9 -8 -8 -8 -8 -7 -7 -7 -7 -7 -7 -6 -6 -6 -6 -6 -6 -6 -5 -5 -4 -4 -4 -4 -3 -2 -1 --------- Run | Yrd Mat Min Mat Min Exi Min Mat Sto Gar Fac Was Fac Low Low Dat Pro Fac Ext Cet Arc Hub Gar Fac DSF Fac Gar Fac DSF Res Res Acc Distress Signals 26 | . 1 . 2 . . . 2 3 . . . . . . . 1 . 1 2 . 1 . . . . . . . 11 2 . Communications Jammed 88 | . . . . . . . . . . . . . . . . . . . . . . . . 3 . . . 1 2 62 20 Distress Signals 71 | . . . . . . . . . . . . . . . . . . . . . . . . . . . . . 2 49 20 Times Spotted 476 | . 18 6 30 6 . 8 35 50 25 16 6 3 13 8 . 3 10 23 10 12 7 19 . 8 4 33 2 18 38 44 21 Peak Tracking Total 13 | . 4 3 5 3 . 4 6 4 3 5 2 2 4 4 . 2 2 4 5 2 4 4 . 4 2 3 1 13 5 6 5 Tactical Retreats 14 | . 1 . 1 . . 1 . 3 . . . . 1 1 . 1 1 . . . 1 . . 1 . . . . . 2 . Traps | -11 -10 -10 -9 -9 -9 -8 -8 -8 -8 -7 -7 -7 -7 -7 -7 -6 -6 -6 -6 -6 -6 -6 -5 -5 -4 -4 -4 -4 -3 -2 -1 ------- Run | Yrd Mat Min Mat Min Exi Min Mat Sto Gar Fac Was Fac Low Low Dat Pro Fac Ext Cet Arc Hub Gar Fac DSF Fac Gar Fac DSF Res Res Acc Traps Triggered 43 | . 1 . 2 . . . 1 5 12 1 . 3 . . . . 2 5 . . . . . 2 . 2 . 1 1 2 3 Indirectly 5 | . . . . . . . . 3 2 . . . . . . . . . . . . . . . . . . . . . . Trap Hack Attempts 69 | . . . 41 . . . . 9 . 9 . 10 . . . . . . . . . . . . . . . . . . . Triggered 1 | . . . 1 . . . . . . . . . . . . . . . . . . . . . . . . . . . . Disarmed 2 | . . . . . . . . . . 2 . . . . . . . . . . . . . . . . . . . . . Reprogrammed 8 | . 3 . 2 . . . . 3 . . . . . . . . . . . . . . . . . . . . . . . Reused 7 | . . 1 5 . . . . . . . . . . . . 1 . . . . . . . . . . . . . . . Traps Extracted . | . . . . . . . . . . . . . . . . . . . . . . . . . . . . . . . . Installed 6 | . . 1 4 . . . . . . . . . . . . 1 . . . . . . . . . . . . . . . Triggered 7 | . . 1 5 . . . . . . . . . . . . 1 . . . . . . . . . . . . . . . Most Traps Carried 4 | . . 4 4 . . . . . . . . . . 1 1 1 . . . . . . . . . . . . . . . Machines | -11 -10 -10 -9 -9 -9 -8 -8 -8 -8 -7 -7 -7 -7 -7 -7 -6 -6 -6 -6 -6 -6 -6 -5 -5 -4 -4 -4 -4 -3 -2 -1 ---------- Run | Yrd Mat Min Mat Min Exi Min Mat Sto Gar Fac Was Fac Low Low Dat Pro Fac Ext Cet Arc Hub Gar Fac DSF Fac Gar Fac DSF Res Res Acc Machines Disabled 53 | . 1 1 2 1 . . 3 7 6 . . 3 . . . . . 4 1 3 1 5 . . 2 3 1 . 3 3 3 Max in Single Turn 3 | . 1 1 1 1 . . 2 3 1 . . 3 . . . . . 1 1 . . 1 . . . 1 . . . 1 1 Garrison Access 5 | . . . . . . . . . . 1 . . . . . . . . . . . . . . . . . . 1 3 . Garrison Relay 8 | . . . . . . . . . 5 . . . . . . . . . . . . 1 . . . 2 . . . . . Network Hub 1 | . . . . . . . . . . . . . . . . . . . . . 1 . . . . . . . . . . Machines Repaired . | . . . . . . . . . . . . . . . . . . . . . . . . . . . . . . . . Machines Dismantled . | . . . . . . . . . . . . . . . . . . . . . . . . . . . . . . . . Machines Sabotaged . | . . . . . . . . . . . . . . . . . . . . . . . . . . . . . . . . Overloaded Fab Kills . | . . . . . . . . . . . . . . . . . . . . . . . . . . . . . . . . Hacking | -11 -10 -10 -9 -9 -9 -8 -8 -8 -8 -7 -7 -7 -7 -7 -7 -6 -6 -6 -6 -6 -6 -6 -5 -5 -4 -4 -4 -4 -3 -2 -1 --------- Run | Yrd Mat Min Mat Min Exi Min Mat Sto Gar Fac Was Fac Low Low Dat Pro Fac Ext Cet Arc Hub Gar Fac DSF Fac Gar Fac DSF Res Res Acc Machines Accessed 82 | . 5 . 9 . 2 . 7 10 3 5 . 7 . . 3 . 4 2 . . 1 1 1 . 5 . 3 . 6 8 . Terminals 49 | . 4 . 5 . . . 5 9 3 3 . 2 . . . . 3 2 . . . 1 1 . 3 . 3 . 1 4 . Fabricators 5 | . . . . . . . . . . . . 3 . . . . . . . . . . . . . . . . 2 . . Repair Stations 6 | . 1 . 2 . . . . . . 1 . 1 . . . . . . . . . . . . . . . . 1 . . Recycling Units . | . . . . . . . . . . . . . . . . . . . . . . . . . . . . . . . . Scanalyzers 9 | . . . 2 . . . 2 . . . . 1 . . . . 1 . . . . . . . 1 . . . 1 1 . Garrison Access 8 | . . . . . . . . 1 . 1 . . . . . . . . . . 1 . . . 1 . . . 1 3 . Total Hacks 243 | . 17 . 31 . 2 . 17 26 5 15 . 20 . . 24 . 7 4 . . 1 3 1 . 23 . 9 . 18 20 . Successful 144 | . 6 . 21 . 2 . 5 10 2 8 . 13 . . 24 . 4 2 . . 1 2 1 . 16 . 5 . 10 12 . Failed 94 | . 10 . 9 . . . 12 15 3 7 . 7 . . . . 3 2 . . . 1 . . 6 . 4 . 7 8 . Catastrophic 17 | . 1 . 4 . . . 2 2 . 1 . 1 . . . . . . . . . . . . . . 2 . 2 2 . Database Lockouts 5 | . 1 . 1 . . . . 1 . . . . . . . . . . . . . . . . 1 . . . 1 . . Manual 91 | . 9 . 13 . 1 . 7 16 . 10 . 6 . . . . 4 2 1 . . 2 . . 11 . . . 5 4 . Terminals 126 | . 15 . 11 . . . 10 24 5 12 . 5 . . . . 5 4 . . . 3 1 . 11 . 9 . 1 10 . Fabricators 16 | . . . . . . . . . . . . 7 . . . . . . . . . . . . . . . . 9 . . Repair Stations 16 | . 2 . 9 . . . . . . 1 . 2 . . . . . . . . . . . . . . . . 2 . . Recycling Units . | . . . . . . . . . . . . . . . . . . . . . . . . . . . . . . . . Scanalyzers 44 | . . . 11 . . . 7 . . . . 6 . . . . 2 . . . . . . . 10 . . . 4 4 . Garrison Access 15 | . . . . . . . . 2 . 2 . . . . . . . . . . 1 . . . 2 . . . 2 6 . Terminal Hacks 65 | . 4 . 3 . 2 . 1 9 2 4 . 2 . . 24 . 1 1 . . . 1 1 . 4 . 5 . . 1 . Record 7 | . . . . . 1 . . . . . . . . . 6 . . . . . . . . . . . . . . . . Part Schematic 11 | . . . . . . . . . . . . . . . 11 . . . . . . . . . . . . . . . . Robot Schematic 4 | . . . . . . . . . . . . . . . 4 . . . . . . . . . . . . . . . . Robot Analysis 6 | . 2 . 1 . . . . 2 . 1 . . . . . . . . . . . . . . . . . . . . . Prototype ID Bank 4 | . . . . . . . . 1 . . . . . . 3 . . . . . . . . . . . . . . . . Open Door 3 | . . . . . . . . 1 1 . . . . . . . 1 . . . . . . . . . . . . . . Open DSF 2 | . . . . . . . . . . . . . . . . . . . . . . . 1 . . . 1 . . . . Branch Access Points 2 | . . . . . . . . . . . . 1 . . . . . . . . . . . . . . 1 . . . . Emergency Access Points 1 | . . . . . . . . . . . . . . . . . . . . . . 1 . . . . . . . . . Fabricator Index 1 | . . . . . . . . . . . . . . . . . . . . . . . . . 1 . . . . . . Scanalyzer Index 2 | . . . 1 . . . 1 . . . . . . . . . . . . . . . . . . . . . . . . Unreport Threat 11 | . . . . . . . . 4 . 2 . . . . . . . . . . . . . . 2 . 3 . . . . Locate Traps 7 | . 1 . 1 . . . . 1 . 1 . 1 . . . . . 1 . . . . . . 1 . . . . . . Reprogram Traps 1 | . 1 . . . . . . . . . . . . . . . . . . . . . . . . . . . . . . Zone Layout 1 | . . . . . . . . . . . . . . . . . . . . . . . . . . . . . . 1 . Security Stations 1 | . . . . . . . . . 1 . . . . . . . . . . . . . . . . . . . . . . Proto ID Catalog 1 | . . . . . 1 . . . . . . . . . . . . . . . . . . . . . . . . . . Fabricator Hacks 7 | . . . . . . . . . . . . 2 . . . . . . . . . . . . . . . . 5 . . Network Status 1 | . . . . . . . . . . . . 1 . . . . . . . . . . . . . . . . . . . Load Schematic 3 | . . . . . . . . . . . . . . . . . . . . . . . . . . . . . 3 . . Build 3 | . . . . . . . . . . . . 1 . . . . . . . . . . . . . . . . 2 . . Repair Station Hacks 12 | . 2 . 7 . . . . . . . . 2 . . . . . . . . . . . . . . . . 1 . . Scan Component 7 | . 1 . 4 . . . . . . . . 1 . . . . . . . . . . . . . . . . 1 . . Repair 5 | . 1 . 3 . . . . . . . . 1 . . . . . . . . . . . . . . . . . . . Recycling Unit Hacks . | . . . . . . . . . . . . . . . . . . . . . . . . . . . . . . . . Scanalyzer 28 | . . . 7 . . . 3 . . . . 4 . . . . 2 . . . . . . . 8 . . . 1 3 . Insert Component 7 | . . . 4 . . . . . . . . . . . . . . . . . . . . . 3 . . . . . . Analyze 7 | . . . 3 . . . . . . . . . . . . . . . . . . . . . 4 . . . . . . Retrieve Study 14 | . . . . . . . 3 . . . . 4 . . . . 2 . . . . . . . 1 . . . 1 3 . Garrison Access Hacks 13 | . . . . . . . . 1 . 2 . . . . . . . . . . 1 . . . 1 . . . 2 6 . Unlock Access 3 | . . . . . . . . 1 . . . . . . . . . . . . 1 . . . 1 . . . . . . Seal Access 5 | . . . . . . . . . . 1 . . . . . . . . . . . . . . . . . . 1 3 . Coupler Status 5 | . . . . . . . . . . 1 . . . . . . . . . . . . . . . . . . 1 3 . Unauthorized Hacks 19 | . . . 4 . . . 1 . . 2 . 3 . . . . 1 1 . . . 1 . . 3 . . . 1 2 . Terminals 12 | . . . 2 . . . 1 . . 2 . . . . . . 1 1 . . . 1 . . 2 . . . . 2 . Assimilate 1 | . . . . . . . . . . . . . . . . . . . . . . . . . . . . . . 1 . Botnet 9 | . . . 2 . . . 1 . . 1 . . . . . . 1 1 . . . . . . 2 . . . . 1 . Disrupt 1 | . . . . . . . . . . . . . . . . . . . . . . 1 . . . . . . . . . Operators 1 | . . . . . . . . . . 1 . . . . . . . . . . . . . . . . . . . . . Fabricators 4 | . . . . . . . . . . . . 3 . . . . . . . . . . . . . . . . 1 . . Liberate 2 | . . . . . . . . . . . . 2 . . . . . . . . . . . . . . . . . . . Haulers 1 | . . . . . . . . . . . . 1 . . . . . . . . . . . . . . . . . . . Recompile 1 | . . . . . . . . . . . . . . . . . . . . . . . . . . . . . 1 . . Repair Stations . | . . . . . . . . . . . . . . . . . . . . . . . . . . . . . . . . Recycling Units . | . . . . . . . . . . . . . . . . . . . . . . . . . . . . . . . . Scanalyzers 2 | . . . 2 . . . . . . . . . . . . . . . . . . . . . . . . . . . . Extract 2 | . . . 2 . . . . . . . . . . . . . . . . . . . . . . . . . . . . Garrison Access 1 | . . . . . . . . . . . . . . . . . . . . . . . . . 1 . . . . . . Reprogram 1 | . . . . . . . . . . . . . . . . . . . . . . . . . 1 . . . . . . Data Cores Recovered 3 | . . . . . . . 1 . . . . . . . . . . 1 . . . . . . . . 1 . . . . Used 2 | . . . . . . . . . . . . . . . . . . 1 . . . . . . . . 1 . . . . Hacking Detections 62 | . 4 . 9 . . . 7 8 2 5 . 6 . . . . 3 2 . . 1 . . . 3 . 2 . 4 6 . Full Trace Events 7 | . . . . . . . 2 1 . 1 . 1 . . . . 1 . . . . . . . 1 . . . . . . Feedback Events . | . . . . . . . . . . . . . . . . . . . . . . . . . . . . . . . . Feedback Blocked . | . . . . . . . . . . . . . . . . . . . . . . . . . . . . . . . . Robot Schematics Acquired 4 | . . . . . . . . . . . . . . . 4 . . . . . . . . . . . . . . . . Robots Built . | . . . . . . . . . . . . . . . . . . . . . . . . . . . . . . . . Authchips . | . . . . . . . . . . . . . . . . . . . . . . . . . . . . . . . . Time . | . . . . . . . . . . . . . . . . . . . . . . . . . . . . . . . . Total Robot Build Rating . | . . . . . . . . . . . . . . . . . . . . . . . . . . . . . . . . Part Schematics Acquired 29 | . . . 15 . . . . . . . . . . . 11 . . . . . . . . . 3 . . . . . . Parts Built 3 | . . . . . . . . . . . . 2 . . . . . . . . . . . . . . . . 1 . . Authchips 2 | . . . . . . . . . . . . . . . . . . . . . . . . . . . . . 2 . . Time 220 | . . . . . . . . . . . . 84 . . . . . . . . . . . . . . . . 136 . . Total Part Build Rating 16 | . . . . . . . . . . . . 8 . . . . . . . . . . . . . . . . 8 . . Part Studies Acquired 14 | . . . . . . . 3 . . . . 4 . . . . 2 . . . . . . . 1 . . . 1 3 . Parts Repaired 5 | . 1 . 3 . . . . . . . . 1 . . . . . . . . . . . . . . . . . . . Time 182 | . 26 . 78 . . . . . . . . 78 . . . . . . . . . . . . . . . . . . . Parts Recycled . | . . . . . . . . . . . . . . . . . . . . . . . . . . . . . . . . Recycled Matter . | . . . . . . . . . . . . . . . . . . . . . . . . . . . . . . . . Retrieved Matter . | . . . . . . . . . . . . . . . . . . . . . . . . . . . . . . . . Retrieved Components . | . . . . . . . . . . . . . . . . . . . . . . . . . . . . . . . . Parts Scanalyzed 6 | . . . 3 . . . . . . . . . . . . . . . . . . . . . 3 . . . . . . Part Schematics Acquired 6 | . . . 3 . . . . . . . . . . . . . . . . . . . . . 3 . . . . . . Parts Damaged 1 | . . . . . . . . . . . . . . . . . . . . . . . . . 1 . . . . . . Bothacking | -11 -10 -10 -9 -9 -9 -8 -8 -8 -8 -7 -7 -7 -7 -7 -7 -6 -6 -6 -6 -6 -6 -6 -5 -5 -4 -4 -4 -4 -3 -2 -1 ------------ Run | Yrd Mat Min Mat Min Exi Min Mat Sto Gar Fac Was Fac Low Low Dat Pro Fac Ext Cet Arc Hub Gar Fac DSF Fac Gar Fac DSF Res Res Acc Used RIF Installer 2 | . . . . . . . . . 1 . . . . . . . . . . . . 1 . . . . . . . . . Robot Detection 1 | . . . . . . . . . . . . . . . . . . . . . . 1 . . . . . . . . . Robots Hacked 33 | . . . 1 . 4 . . . . 3 6 . . . 1 . 1 1 . . 1 1 . . . 5 . 1 . 6 2 Non-combat 10 | . . . 1 . 3 . . . . 1 . . . . . . 1 . . . 1 1 . . . 2 . . . . . Combat 23 | . . . . . 1 . . . . 2 6 . . . 1 . . 1 . . . . . . . 3 . 1 . 6 2 Robot Hacks Applied 35 | . . . 1 . 4 . . . . 3 7 . . . 1 . 2 1 . . 1 1 . . . 5 . 1 . 6 2 parse_system 7 | . . . . . 4 . . . . . 1 . . . 1 . . 1 . . . . . . . . . . . . . no_distress 1 | . . . 1 . . . . . . . . . . . . . . . . . . . . . . . . . . . . find_chute 1 | . . . . . . . . . . 1 . . . . . . . . . . . . . . . . . . . . . deconstruct_machine 1 | . . . . . . . . . . . . . . . . . . . . . 1 . . . . . . . . . . block_reporting 1 | . . . . . . . . . . . . . . . . . 1 . . . . . . . . . . . . . . ignore_targets 6 | . . . . . . . . . . . 6 . . . . . . . . . . . . . . . . . . . . scatter_targeting 1 | . . . . . . . . . . . . . . . . . . . . . . . . . . . . . . 1 . spike_heat 1 | . . . . . . . . . . . . . . . . . . . . . . . . . . 1 . . . . . amplify_resonance 1 | . . . . . . . . . . 1 . . . . . . . . . . . . . . . . . . . . . overwrite_iff 5 | . . . . . . . . . . . . . . . . . . . . . . . . . . . . . . 4 1 streamctrl_high 1 | . . . . . . . . . . . . . . . . . . . . . . . . . . . . . . 1 . formatsys_low 4 | . . . . . . . . . . . . . . . . . 1 . . . . 1 . . . 2 . . . . . formatsys_high 5 | . . . . . . . . . . 1 . . . . . . . . . . . . . . . 2 . 1 . . 1 Relay Couplers Released 44 | . . . . . . . . . 21 3 . . . . . . . . . . . 4 . . . 10 . . 3 3 . Machine Destruction 44 | . . . . . . . . . 21 3 . . . . . . . . . . . 4 . . . 10 . . 3 3 . Attached 13 | . . . . . . . . . . 2 1 . . . . . 1 . . . 1 . . . . 2 . 1 . 3 2 Fabnet Peak Effective % . | . . . . . . . . . . . . . . . . . . . . . . . . . . . . . . . . Robots Rewired 16 | . . . . . . . . . . . . . . . . . . 10 . . . 3 . . . 3 . . . . . Allies Hacked . | . . . . . . . . . . . . . . . . . . . . . . . . . . . . . . . . Hacks Repelled . | . . . . . . . . . . . . . . . . . . . . . . . . . . . . . . . . Allies | -11 -10 -10 -9 -9 -9 -8 -8 -8 -8 -7 -7 -7 -7 -7 -7 -6 -6 -6 -6 -6 -6 -6 -5 -5 -4 -4 -4 -4 -3 -2 -1 -------- Run | Yrd Mat Min Mat Min Exi Min Mat Sto Gar Fac Was Fac Low Low Dat Pro Fac Ext Cet Arc Hub Gar Fac DSF Fac Gar Fac DSF Res Res Acc Total Allies 64 | . . . . 3 . . . 10 2 1 . 3 . . . . 1 16 5 . . 4 . . 4 7 . 1 . 5 2 Largest Group 14 | . . . . 3 3 3 2 10 8 1 . 3 . . . . 1 12 14 14 13 8 7 7 10 10 10 11 6 2 2 Highest-Rated Group 865 | . . . . 40 40 40 32 173 141 10 . 48 . . . . 10 486 865 865 712 487 458 458 605 644 644 786 422 183 283 Highest-Rated Ally 219 | . . . . 16 16 16 16 29 31 10 . 16 . . . . 10 159 159 153 96 96 96 96 96 148 148 148 132 183 219 Total Orders 70 | . . . . . . . . . . . . . . . . . 2 . 2 4 12 9 . 4 4 21 1 1 8 2 . STAY 27 | . . . . . . . . . . . . . . . . . 1 . 1 2 3 4 . 2 1 12 . . . 1 . FOLLOW 22 | . . . . . . . . . . . . . . . . . 1 . 1 2 9 2 . 1 1 4 . . . 1 . AID 21 | . . . . . . . . . . . . . . . . . . . . . . 3 . 1 2 5 1 1 8 . . Ally Attacks 823 | . . . . . . 5 10 20 74 . . 2 . . . . . 109 44 21 89 88 . 24 11 140 13 57 70 27 19 Total Damage 24844 | . . . . . . 43 98 205 952 . . 21 . . . . . 1947 1082 549 2035 3565 . 1019 363 4561 342 2236 3049 1317 1460 Kills 140 | . . . . . . 1 2 3 9 . . . . . . . . 16 9 3 16 20 . 4 2 19 2 13 17 2 2 Allies Corrupted 2 | . . . . . . . . . 1 . . . . . . . . . . . 1 . . . . . . . . . . Allies Melted 2 | . . . . . . . . . . . . . . . . . . . . . . . . . . 1 . . 1 . . Intel | -11 -10 -10 -9 -9 -9 -8 -8 -8 -8 -7 -7 -7 -7 -7 -7 -6 -6 -6 -6 -6 -6 -6 -5 -5 -4 -4 -4 -4 -3 -2 -1 ------- Run | Yrd Mat Min Mat Min Exi Min Mat Sto Gar Fac Was Fac Low Low Dat Pro Fac Ext Cet Arc Hub Gar Fac DSF Fac Gar Fac DSF Res Res Acc Active Infowar (turns) 13364 | . . . 600 . . . . . . 896 172 798 754 978 173 1167 858 633 . . . . 90 255 279 1038 172 227 1731 2170 373 Terrain 245 | . . . . . . . . . . . . . . . . . . . . . . . . . . . . . . 2 243 Seismic 600 | . . . 600 . . . . . . . . . . . . . . . . . . . . . . . . . . . . Machine Analysis 6429 | . . . . . . . . . . 896 172 798 754 978 173 1167 858 633 . . . . . . . . . . . . . Jamming 6335 | . . . . . . . . . . . . . . . . . . . . . . . 90 255 279 1038 172 227 1731 2170 373 Robot Analysis Total 6 | . 2 . 1 . . . . 2 . 1 . . . . . . . . . . . . . . . . . . . . . Derelict Logs Recovered 8 | . . 3 . 2 . . . . . . . . 1 1 . 1 . . . . . . . . . . . . . . . Drone Launches . | . . . . . . . . . . . . . . . . . . . . . . . . . . . . . . . . Drone Recoveries . | . . . . . . . . . . . . . . . . . . . . . . . . . . . . . . . . Exploration | -11 -10 -10 -9 -9 -9 -8 -8 -8 -8 -7 -7 -7 -7 -7 -7 -6 -6 -6 -6 -6 -6 -6 -5 -5 -4 -4 -4 -4 -3 -2 -1 ------------- Run | Yrd Mat Min Mat Min Exi Min Mat Sto Gar Fac Was Fac Low Low Dat Pro Fac Ext Cet Arc Hub Gar Fac DSF Fac Gar Fac DSF Res Res Acc Turns Passed 32300 | 137 814 998 2757 1614 720 941 2025 1818 3255 896 172 798 754 978 173 1167 858 1567 370 966 629 1084 95 255 280 1397 172 227 1731 2170 482 Spaces Moved 13161 | 70 413 535 943 653 295 381 686 604 1414 338 72 350 339 388 84 463 303 622 155 111 283 543 53 119 151 647 93 91 858 927 177 Core 34 | 6 . . . . . . . . . . . . . . . . . . . 28 . . . . . . . . . . . Treads 13127 | 64 413 535 943 653 295 381 686 604 1414 338 72 350 339 388 84 463 303 622 155 83 283 543 53 119 151 647 93 91 858 927 177 Legs . | . . . . . . . . . . . . . . . . . . . . . . . . . . . . . . . . Wheels . | . . . . . . . . . . . . . . . . . . . . . . . . . . . . . . . . Hover . | . . . . . . . . . . . . . . . . . . . . . . . . . . . . . . . . Flight . | . . . . . . . . . . . . . . . . . . . . . . . . . . . . . . . . Fastest Speed 50 | 50 160 160 240 240 240 240 200 200 200 200 200 200 200 206 206 206 205 202 160 160 160 160 160 160 160 160 160 160 160 160 155 Average Speed 200 | 150 160 173 240 240 240 240 236 200 200 200 204 200 201 226 206 206 205 204 190 725 160 160 160 160 160 160 160 160 160 163 158 Slowest Speed 2400 | 160 160 320 240 240 240 240 240 200 200 216 216 200 206 246 206 206 205 205 216 2400 160 160 160 160 160 160 160 160 240 232 161 Overloaded Moves . | . . . . . . . . . . . . . . . . . . . . . . . . . . . . . . . . Propulsion Burnouts . | . . . . . . . . . . . . . . . . . . . . . . . . . . . . . . . . Robots Hopped . | . . . . . . . . . . . . . . . . . . . . . . . . . . . . . . . . Potential Cave-ins 2 | . . . . . . . . . . . . . . . . . . . . . . . . . . . . . 2 . . Cave-ins Triggered . | . . . . . . . . . . . . . . . . . . . . . . . . . . . . . . . . Exploration Rate (%) 53 | 5 60 99 60 99 70 91 65 92 86 13 66 10 64 57 71 67 8 82 69 69 18 66 2 88 4 60 3 89 38 30 7 Regions Visited 31 Branch Regions 13 Pre-discovered Areas 3 | . . 1 . . 1 . . . . . . . . . 1 . . . . . . . . . . . . . . . . Known Exits Taken 7 | . . . . . . . 1 1 . . . 1 . . . . . . . . 1 . 1 . 1 . 1 . . . . Unknown Exits Taken 17 | 1 1 1 1 1 1 1 . . . . . . 1 1 1 1 1 1 1 1 . . . . . . . . 1 1 . Scrap Searched 7 | . . 1 . 2 . 1 . . . . . . 2 1 . . . . . . . . . . . . . . . . . Spaces Dug 94 | . 1 . 4 9 . 15 18 1 25 2 . 3 . . . . 8 . . . 5 . . . . . . . . 3 . Terrain Destroyed 377 | . 1 . 10 11 . 39 113 74 29 22 . 42 8 2 . . 8 2 . . 5 . . . . . . . . 10 1 Melee 40 | . 1 . 4 . . . 11 1 7 2 . 3 . . . . 6 . . . 2 . . . . . . . . 3 . Projectile 16 | . . . . . . . . . . . . . 1 2 . . 2 2 . . 3 . . . . . . . . 5 1 AOE 319 | . . . 6 11 . 39 102 73 22 20 . 39 7 . . . . . . . . . . . . . . . . . . Terrain Rammed . | . . . . . . . . . . . . . . . . . . . . . . . . . . . . . . . . Walls Destroyed . | . . . . . . . . . . . . . . . . . . . . . . . . . . . . . . . . Machines Disabled . | . . . . . . . . . . . . . . . . . . . . . . . . . . . . . . . . Actions | -11 -10 -10 -9 -9 -9 -8 -8 -8 -8 -7 -7 -7 -7 -7 -7 -6 -6 -6 -6 -6 -6 -6 -5 -5 -4 -4 -4 -4 -3 -2 -1 --------- Run | Yrd Mat Min Mat Min Exi Min Mat Sto Gar Fac Was Fac Low Low Dat Pro Fac Ext Cet Arc Hub Gar Fac DSF Fac Gar Fac DSF Res Res Acc Total 17326 | 89 497 578 1306 679 306 397 960 972 1673 508 90 411 372 441 85 645 477 846 215 242 437 703 63 160 181 906 115 154 1129 1386 303 Wait 2139 | 2 14 2 164 11 2 3 138 174 93 100 . 11 3 3 . 159 121 45 21 102 132 84 . 2 22 162 20 44 178 281 46 Move 13130 | 69 412 534 942 652 294 380 685 603 1413 338 71 349 338 387 83 462 302 621 154 110 282 542 52 118 150 646 92 90 857 926 176 Hop . | . . . . . . . . . . . . . . . . . . . . . . . . . . . . . . . . Pick Up 188 | 7 15 11 27 1 2 . 11 15 8 7 1 5 3 2 . . 2 11 5 1 . 8 3 3 . 10 1 2 15 8 4 Fast Attach 103 | 6 3 . 5 . . . 5 2 6 1 1 . 1 4 . . 3 9 6 2 . 4 2 11 . 2 . 2 5 19 4 Attach 66 | . 1 . 7 . . . 4 6 4 4 . 4 4 5 . 1 3 . . . . . 2 . 2 . . 3 3 3 10 Detach 34 | . . . 1 . . . . 1 . . . . . 6 1 . 2 5 5 1 . 1 . 3 1 . . 2 1 4 . Swap 258 | . 7 5 16 2 2 8 25 23 23 20 5 7 3 2 . 4 9 8 2 1 8 15 1 1 . 15 . 1 13 23 9 Drop 195 | . 8 7 21 . 2 . 15 15 11 4 1 2 . . . 1 2 15 13 2 2 11 3 11 . 10 1 1 17 18 2 Fire 853 | 5 30 11 59 8 . 5 61 110 80 19 11 13 20 32 1 17 15 31 9 23 11 25 . 11 3 55 1 9 39 89 50 Melee 101 | . 3 . 7 . 4 . 14 7 19 3 . 4 . . . . 18 . . . 2 2 . . . 5 . . 1 12 . Ram . | . . . . . . . . . . . . . . . . . . . . . . . . . . . . . . . . Kick . | . . . . . . . . . . . . . . . . . . . . . . . . . . . . . . . . Crush 49 | . 4 7 12 5 . 1 2 5 . 3 . . . . . . . 2 . . . . . . 3 . . . . 3 2 Escape Stasis 34 | . . . . . . . . 2 16 . . 6 . . . . . 10 . . . . . . . . . . . . . Rewire 101 | . . . . . . . . . . . . . . . . . . 89 . . . 11 . . . 1 . . . . . Trap 75 | . . 1 45 . . . . 9 . 9 . 10 . . . 1 . . . . . . . . . . . . . . . Miscellaneous . | . . . . . . . . . . . . . . . . . . . . . . . . . . . . . . . . Route ------- -11/Scrapyard -10/Materials (discovered 2 exits: *Mat / [*Min]) -10/Mines (discovered 3 exits: *Mat x2 / [*Sub]) -9/Materials (discovered 3 exits: *Mat / [*Min x2]) -9/Mines (discovered 3 exits: *Mat x2 / *Exi) -9/Exiles -8/Mines (discovered 2 exits: *Mat x2) -8/Materials (discovered 3 exits: *Fac x2 / *Sto) -8/Storage (discovered 2 exits: *Fac / Gar) -8/Garrison (discovered 3 exits: *Fac x3) -7/Factory -7/Waste -7/Factory (discovered 3 exits: *Fac / *Low x2) -7/Lower Caves -7/Lower Caves -7/Data Miner -6/Proximity Caves -6/Factory -6/Extension (discovered 2 exits: *Fac / *Cet) -6/Cetus (discovered 2 exits: *Fac / [*Arc]) -6/Archives (discovered 2 exits: *Fac / *Hub) -6/Hub_04(d) (discovered 2 exits: *Fac / Gar) -6/Garrison (discovered 3 exits: *Fac x3) -5/Factory (discovered 2 exits: Upp / DSF) -5/DSF -4/Factory -4/Garrison (discovered 2 exits: *Fac x2) -4/Factory (discovered 3 exits: Upp x2 / DSF) -4/DSF -3/Research (discovered 2 exits: *Res / [*Qua]) -2/Research (discovered 2 exits: [*Acc] / *Tes) -1/Access To Epsilon Eridani History --------- Turn | Location | Event 6 | -11/Scrapyard | Discovered new exit (range 14) 138 | -11/Scrapyard | Entered Materials 315 | -10/Materials | Build established: Mutant 349 | -10/Materials | Discovered new exit (range 8) 400 | -10/Materials | Discovered new exit (range 11) 607 | -10/Materials | Central database locked down 622 | -10/Materials | Repaired Lgt. Treads? 952 | -10/Materials | Entered Mines 973 | -10/Mines | Found DCF Scrap (15 items) 1101 | -10/Mines | Found a hidden stash of uninstalled traps 1258 | -10/Mines | Discovered new exit (range 15) 1278 | -10/Mines | Discovered new exit (range 10) 1290 | -10/Mines | Learned location of Storage (-8) 1306 | -10/Mines | Discovered new exit (range 10) 1335 | -10/Mines | Learned Materials stockpile data 1425 | -10/Mines | Received a Rocket Launcher from a helpful Derelict 1475 | -10/Mines | Learned Materials terminal intel 1950 | -10/Mines | Entered Materials 1950 | -9/Materials | Evolved 2 slots: Propulsion x1, Utility x1 1952 | -9/Materials | Loaded intel: 12 terminal locations 2431 | -9/Materials | Discovered new exit (range 2) 2817 | -9/Materials | Repaired Lgt. Treads 2902 | -9/Materials | Discovered new exit (range 16) 3330 | -9/Materials | Repaired Lgt. Treads 3357 | -9/Materials | Repaired Lgt. Treads 3568 | -9/Materials | Central database locked down 4143 | -9/Materials | Discovered new exit (range 16) 4707 | -9/Materials | Entered Mines 4750 | -9/Mines | Discovered new exit (range 13) 4810 | -9/Mines | Discovered new exit (range 15) 5231 | -9/Mines | Met a Derelict testing a Signal Generator 5316 | -9/Mines | Deemed a non-threat by the Exiles lab entrance 5316 | -9/Mines | Discovered new exit (range 5) 5474 | -9/Mines | Assisted by bots powering up and referring to "LRC-V3" 5755 | -9/Mines | Learned Materials terminal intel 6321 | -9/Mines | Entered Exiles 6321 | -9/Exiles | Accompanied by 3 allies 6384 | -9/Exiles | Met 8R-AWN 6427 | -9/Exiles | Met EX-HEX 6555 | -9/Exiles | Met EX-DEC 6624 | -9/Exiles | Learned location of Zion (-6) 6684 | -9/Exiles | Met EX-BIN 6723 | -9/Exiles | Aligned with FarCom system 6726 | -9/Exiles | Given EX-Vault access code 6783 | -9/Exiles | Opened EX-Vault 6796 | -9/Exiles | Found Superbattery 6842 | -9/Exiles | Warned to stay clear of 0b10 Research branches 7017 | -9/Exiles | Discovered new exit (range 10) 7041 | -9/Exiles | Left Exiles lab with Superbattery 7041 | -9/Exiles | Entered Mines 7041 | -8/Mines | Accompanied by 3 allies 7459 | -8/Mines | Discovered new exit (range 12) 7953 | -8/Mines | Discovered new exit (range 5) 7982 | -8/Mines | Entered Materials 7982 | -8/Materials | Accompanied by 2 allies 7982 | -8/Materials | Evolved 2 slots: Utility x1, Weapon x1 7983 | -8/Materials | Identified exit to Storage 7984 | -8/Materials | Loaded intel: 12 terminal locations 8285 | -8/Materials | Build established: Skirmisher 8689 | -8/Materials | Garrison activated, responded to threat 8900 | -8/Materials | Discovered new exit (range 15) 8991 | -8/Materials | Build established: Tank 9408 | -8/Materials | Discovered new exit (range 3) 10007 | -8/Materials | Entered Storage 10263 | -8/Storage | Garrison activated, responded to threat 10283 | -8/Storage | Build established: Scavenger-Skirmisher 10407 | -8/Storage | First assault squad dispatched 10982 | -8/Storage | Discovered new exit (range 5) 11411 | -8/Storage | Identified exit to Garrison 11716 | -8/Storage | Assisted by bots powering up and referring to "LRC-V3" 11718 | -8/Storage | Central database locked down 11763 | -8/Storage | Garrison activated, responded to threat 11825 | -8/Storage | Entered Garrison 11825 | -8/Garrison | Accompanied by 8 allies 11897 | -8/Garrison | Triggered checkpoint 11947 | -8/Garrison | Lost 4 allies 11950 | -8/Garrison | Garrison Relay disabled 11976 | -8/Garrison | Triggered checkpoint 12024 | -8/Garrison | Lost 4 allies 12130 | -8/Garrison | Triggered checkpoint 12143 | -8/Garrison | Triggered checkpoint 12167 | -8/Garrison | Destroyed 8 combat bots 12249 | -8/Garrison | Triggered checkpoint 12329 | -8/Garrison | Garrison Relay disabled 12418 | -8/Garrison | Discovered new exit (range 10) 12654 | -8/Garrison | Discovered new exit (range 11) 12684 | -8/Garrison | Triggered checkpoint 12729 | -8/Garrison | Learned Factory security intel 12759 | -8/Garrison | Garrison Relay disabled 12891 | -8/Garrison | Triggered checkpoint 12931 | -8/Garrison | Lost 3 parts (2u1w) 13003 | -8/Garrison | Discovered new exit (range 10) 13047 | -8/Garrison | Triggered checkpoint 13074 | -8/Garrison | Core integrity fell below 50% 13095 | -8/Garrison | Garrison Relay disabled 13180 | -8/Garrison | Rescued a captive Derelict 13181 | -8/Garrison | Rescued a captive Derelict 14887 | -8/Garrison | Installed Relay Interface Framework 15080 | -8/Garrison | Entered Factory 15080 | -7/Factory | Evolved 2 slots: Utility x2 15603 | -7/Factory | Discovered new exit (range 11) 15976 | -7/Factory | Sucked down chute 15976 | -7/Factory | Entered Waste 15991 | -7/Waste | EMP discharged 15995 | -7/Waste | Spotted C-40 Crusher 16007 | -7/Waste | Spotted C-40 Crusher 16028 | -7/Waste | Found Broken Imp. Powered Armor 16039 | -7/Waste | Spotted C-40 Crusher 16048 | -7/Waste | Spotted C-40 Crusher 16048 | -7/Waste | Spotted C-40 Crusher 16088 | -7/Waste | Spotted C-40 Crusher 16091 | -7/Waste | EMP discharged 16091 | -7/Waste | System corruption reached 10% 16129 | -7/Waste | Discovered new exit (range 10) 16148 | -7/Waste | Entered Factory 16285 | -7/Factory | Discovered new exit (range 6) 16411 | -7/Factory | Identified exit to Lower Caves 16427 | -7/Factory | Repaired Broken Imp. Powered Armor? 16465 | -7/Factory | Fabricated Powered Hammer? 16946 | -7/Factory | Entered Lower Caves 17073 | -7/Lower Caves | Learned Factory terminal intel 17514 | -7/Lower Caves | Attracted the attention of an 0b10 checkpoint 17679 | -7/Lower Caves | Discovered new exit (range 10) 17700 | -7/Lower Caves | Entered another Lower Caves area 17756 | -7/Lower Caves | Learned Factory interactive machine intel 17997 | -7/Lower Caves | Encountered a Warlord checkpoint 18004 | -7/Lower Caves | Build established: Scavenger-Mutant 18324 | -7/Lower Caves | Build established: Scavenger-Tank 18663 | -7/Lower Caves | Discovered new exit (range 5) 18678 | -7/Lower Caves | Entered Data Miner 18678 | -7/Data Miner | Discovered new exit (range 6) 18718 | -7/Data Miner | Met Data Miner 18771 | -7/Data Miner | Learned location of Section 7 (-2) 18771 | -7/Data Miner | Acquired the access code to Warlord's prototype stash 18800 | -7/Data Miner | Received God Mode back door access code from Data Miner 18851 | -7/Data Miner | Entered Proximity Caves 18935 | -6/Proximity Caves | Spotter reported a threat 18975 | -6/Proximity Caves | Spotter reported a threat 19246 | -6/Proximity Caves | Received a Behemoth hack from an annoying Tinkerer 20000 | -6/Proximity Caves | Discovered new exit (range 8) 20018 | -6/Proximity Caves | Entered Factory 20018 | -6/Factory | Evolved 2 slots: Power x1, Propulsion x1 20019 | -6/Factory | Loaded intel: 56 interactive machine locations 20020 | -6/Factory | Loaded intel: 28 terminal locations 20712 | -6/Factory | Watched by a mysterious "MATRIX" hacker. 20857 | -6/Factory | Discovered new exit (range 10) 20876 | -6/Factory | Entered Extension 20876 | -6/Extension | Accompanied by 1 ally 20966 | -6/Extension | Rescued a captive Derelict 20967 | -6/Extension | Rescued a captive Derelict 21061 | -6/Extension | Rescued A7 21175 | -6/Extension | Rescued a captive Derelict 21217 | -6/Extension | Rescued a captive Derelict 21582 | -6/Extension | Spotted B-75 Beast 21592 | -6/Extension | Allies destroyed B-75 Beast 21610 | -6/Extension | Spotted B-75 Beast 21634 | -6/Extension | Allies destroyed B-75 Beast 21906 | -6/Extension | Rescued a captive Derelict 22162 | -6/Extension | Lost 4 allies 22389 | -6/Extension | Discovered new exit (range 10) 22391 | -6/Extension | Discovered new exit (range 6) 22443 | -6/Extension | Entered Cetus 22443 | -6/Cetus | Accompanied by 12 allies (A7) 22448 | -6/Cetus | Acquired a Cetus Manufacturing Module code from A7 22468 | -6/Cetus | Spotted Cetus Guard 22469 | -6/Cetus | Spotted Cetus Guard 22471 | -6/Cetus | Spotted Cetus Guard 22472 | -6/Cetus | Spotted Cetus Guard 22475 | -6/Cetus | Destroyed Cetus Guard 22476 | -6/Cetus | Allies destroyed Cetus Guard 22480 | -6/Cetus | Allies destroyed Cetus Guard 22482 | -6/Cetus | Allies destroyed Cetus Guard 22577 | -6/Cetus | Started Cetus Manufacturing Module 22582 | -6/Cetus | Build established: Commander-Tank 22594 | -6/Cetus | Escorted A7 to Cetus Mainframe 22602 | -6/Cetus | Manufactured an Enhanced Grunt 22621 | -6/Cetus | Discovered new exit (range 15) 22627 | -6/Cetus | Manufactured an Enhanced Grunt 22652 | -6/Cetus | Manufactured an Enhanced Grunt 22659 | -6/Cetus | Spotted Cetus Guard 22659 | -6/Cetus | Spotted Cetus Guard 22661 | -6/Cetus | Allies destroyed Cetus Guard 22663 | -6/Cetus | Spotted Cetus Guard 22663 | -6/Cetus | Spotted Cetus Guard 22664 | -6/Cetus | Allies destroyed Cetus Guard 22671 | -6/Cetus | Allies destroyed Cetus Guard 22676 | -6/Cetus | Allies destroyed Cetus Guard 22677 | -6/Cetus | Manufactured an Enhanced Grunt 22686 | -6/Cetus | Discovered new exit (range 15) 22696 | -6/Cetus | Met Revision 17 22702 | -6/Cetus | Manufactured an Enhanced Grunt 22813 | -6/Cetus | Entered Archives 22813 | -6/Archives | Accompanied by 14 allies (A7) 22818 | -6/Archives | Received a hacking code to weaken MAIN.C 22948 | -6/Archives | Discovered new exit (range 16) 23728 | -6/Archives | Discovered new exit (range 16) 23779 | -6/Archives | Entered Hub_04(d) 23779 | -6/Hub_04(d) | Accompanied by 13 allies 23853 | -6/Hub_04(d) | Garrison activated, responded to threat 23884 | -6/Hub_04(d) | Discovered new exit (range 8) 24069 | -6/Hub_04(d) | Identified exit to Garrison 24232 | -6/Hub_04(d) | Lost 5 allies 24310 | -6/Hub_04(d) | Network Hub disabled 24408 | -6/Hub_04(d) | Entered Garrison 24408 | -6/Garrison | Accompanied by 5 allies 24435 | -6/Garrison | Expanded RIF knowledge: Robot Detection 24648 | -6/Garrison | Spotted B-75 Beast 24665 | -6/Garrison | Destroyed B-75 Beast 24676 | -6/Garrison | Triggered checkpoint 24684 | -6/Garrison | Triggered checkpoint 24830 | -6/Garrison | Triggered checkpoint 24837 | -6/Garrison | Build established: Scavenger-Tank 24849 | -6/Garrison | Heavy support dispatched to Factory 24923 | -6/Garrison | Discovered new exit (range 12) 24984 | -6/Garrison | Triggered checkpoint 25007 | -6/Garrison | Garrison Relay disabled 25140 | -6/Garrison | Discovered new exit (range 13) 25234 | -6/Garrison | Triggered checkpoint 25319 | -6/Garrison | H-XX Assembler disabled 25471 | -6/Garrison | Discovered new exit (range 10) 25492 | -6/Garrison | Entered Factory 25492 | -5/Factory | Accompanied by 7 allies 25492 | -5/Factory | Evolved 2 slots: Utility x2 25493 | -5/Factory | Identified exit to Upper Caves 25587 | -5/Factory | Identified exit to DSF 25587 | -5/Factory | Entered DSF 25587 | -5/DSF | Accompanied by 7 allies 25636 | -5/DSF | Additional patrols routed to DSF 25799 | -5/DSF | Discovered new exit (range 14) 25842 | -5/DSF | Entered Factory 25842 | -4/Factory | Accompanied by 6 allies 25842 | -4/Factory | Evolved 2 slots: Propulsion x2 25932 | -4/Factory | Central database locked down 26101 | -4/Factory | Identified exit to Garrison 26122 | -4/Factory | Entered Garrison 26122 | -4/Garrison | Accompanied by 10 allies 26172 | -4/Garrison | Triggered checkpoint 26281 | -4/Garrison | Garrison Relay disabled 26310 | -4/Garrison | Triggered checkpoint 26532 | -4/Garrison | Lost 3 allies 26629 | -4/Garrison | Spotted B-86 Titan 26647 | -4/Garrison | Destroyed B-86 Titan 26654 | -4/Garrison | Triggered checkpoint 26677 | -4/Garrison | Triggered checkpoint 26714 | -4/Garrison | Triggered checkpoint 26835 | -4/Garrison | Discovered new exit (range 10) 26938 | -4/Garrison | Triggered checkpoint 26994 | -4/Garrison | Garrison Relay disabled 27174 | -4/Garrison | Triggered checkpoint 27352 | -4/Garrison | Discovered new exit (range 12) 27361 | -4/Garrison | Spotted B-90 Cyclops 27373 | -4/Garrison | Allies destroyed B-90 Cyclops 27377 | -4/Garrison | Rewired B-86 Titan 27380 | -4/Garrison | Rewired B-90 Cyclops 27519 | -4/Garrison | Entered Factory 27519 | -4/Factory | Accompanied by 10 allies 27649 | -4/Factory | Identified exit to Upper Caves 27685 | -4/Factory | Identified exit to DSF 27686 | -4/Factory | Build established: Commander-Tank 27691 | -4/Factory | Entered DSF 27691 | -4/DSF | Accompanied by 10 allies 27711 | -4/DSF | Additional patrols routed to DSF 27779 | -4/DSF | Wild Derelicts raided the area 27795 | -4/DSF | Discovered new exit (range 16) 27860 | -4/DSF | Lost 4 allies 27918 | -4/DSF | Entered Research 27918 | -3/Research | Accompanied by 6 allies 27918 | -3/Research | Evolved 2 slots: Power x1, Utility x1 28118 | -3/Research | Revision forces began assault on 0b10 28120 | -3/Research | Build established: Scavenger-Tank 28136 | -3/Research | Met up with Revision 17++ 28237 | -3/Research | Central database locked down 28618 | -3/Research | Research terminal network offline 28724 | -3/Research | Discovered new exit (range 11) 29042 | -3/Research | Spotted Striker 29043 | -3/Research | Spotted Striker 29287 | -3/Research | Fabricated Centrium Heavy Treads (x1) 29336 | -3/Research | Spotted Striker 29389 | -3/Research | Lost 4 allies 29624 | -3/Research | Discovered new exit (range 10) 29649 | -3/Research | Entered another Research area 29649 | -2/Research | Accompanied by 1 ally 29649 | -2/Research | Evolved 2 slots: Utility x2 30925 | -2/Research | Discovered new exit (range 5) 30933 | -2/Research | Identified exit to Testing 31809 | -2/Research | Discovered new exit (range 6) 31819 | -2/Research | Entered Access 31819 | -1/Access | Evolved 2 slots: Utility x1, Weapon x1 32018 | -1/Access | Destroyed 8 combat bots 32127 | -1/Access | Spotted B-99 Colossus 32129 | -1/Access | Spotted B-99 Colossus 32167 | -1/Access | Allies destroyed B-99 Colossus 32201 | -1/Access | Destroyed B-99 Colossus 32223 | -1/Access | Lost 6 parts (4u2w) 32294 | -1/Access | Discovered new exit (range 8) 32301 | *** | Escaped! Last Messages --------------- 32260_ Destroyed Unknown Energy Gun. 32263_ Slug penetrates P-80 Master. 32263_ P-80 Master suffers critical hit (Destroy). 32263_ Destroyed Adv. Heat Sink. 32266_ Slug penetrates P-80 Master. 32266_ Destroyed Imp. Antigrav System. 32266_ Adv. Target Analyzer melted. 32266_ P-80 Master destroyed. 32266_ Slug penetrates Wall. 32266_ R-10 Processor collects Unknown Energy Gun. 32270_ RZW/5N PRQTCPZPSMUV, 32270_ Destroyed Com. Wheel. 32283_ Ended siege mode. 32283_ Acquired 17 matter. 32284_ Acquired 118 matter. 32290_ QMJ8NO>NROJKH 32294_ Main Access Shell breached. 32294_ EXIT=FOUND Map ----- +----------------------------------------------------+ | ?????????????????????????????????????????????????? | | ?????????????????????????????????????????????????? | | ?????????????????????????????????????????????????? | | ?????????????????????????????????????????????????? | | ?????????????????????????????????????????????????? | | ?????????????????????????????????????????????????? | | ?????????????????????????????????????????????????? | | ?????????????????????????????????????????????????? | | ?????????????????????????????????????????????????? | | ?????????????????????????????????????????????????? | | ?????????????????????????????????????????????????? | | ?????????????????????????????????????????????????? | | ??????????????????????????????????H??????????????? | | ?????????????????????????????????????????????????? | | ?????????????????????????????????????????????????? | | ?????????????????????????????????????????????????? | | ?????????????????????????????????????????????????? | | ?????????????????????????????????????????????????? | | ?????????????????????????????????????????????????? | | ????????????????#??#? ? ?????????????????????????? | | ???????#????#???#?##?????"""""""?????????????????? | | ??????#??? ?####???#??????? #?????????????????? | | ???? ? ? ?? #????#??? ??? #?????????????????? | | ????????? ? ####????? ?"""""" ##????????????????? | | ?????#?? ?????#?#?#???" " #?????????????????? | | ???? ? #????##?#??##???" @" " #?????????????????? | | ???? ??????##?#?????? " "" " #?????????????????? | | ?#?? ??##?##???#?###?? " " #?#???????????????? | | ## ????##??###??#?#?# """"" #####?????????????? | | ???? ?#?#?#??#???## #???#?????????????? | | ????????###?#???##?#?""""""""" #??#??????????????? | | ## ??#####?###????#"""?"?""" ##?????? ? ???????? | | ?#??? ??####???#?#?##"""???""" ###??#?????+??????? | | ##? ? ??#?#?#?#???##" """"""" #????#?? ?????????? | | ?#??? ####?#?#?????#% ##????# ?????????? | | #?? ?###?#??#?#?### #?????????????????? | | #? ? ????##??#####?# % % ##?#?##???????????? | | ##?########?#??##?###% #?#??#?? ????????? | | ??## ?????##?###% ##????#?? ?#??????? | | ?### #???#?????# ##?#??? ???#??????? | | #??# ###?##?#?## ##?#??#??? #??????? | | #?## ############## ![!####??#??#????#??????? | | #??# # [#[=% #??#???### ??????????? | | ?# # !=#[*% #######??? ????#?????? | | ?+ # !%+ |% #??????? | | #### # %%#! ????????? | | #### # =#! ????????? | | ?### # % # ?????????? | | #### # ######## #####?????????? | | #### #= ## ##### #??#??????????? | +----------------------------------------------------+ Best States ------------- Heat Dissipation 111 Coolant Potential 100 Energy Generation 71 Energy Capacity 2350 Matter Stores 300 Matter Capacity 300 Sight Range 16 Terrain Scan Range 24 Terrain Scan Density 210 Jamming Range 16 Armor Coverage 1200 Resistance: KI 20 Resistance: TH 15 Core Shielding 20 Weapon Cycling 25 Evasion (%) 40 Targeting Accuracy 14 Target Analysis 8 Recoil Reduction 6 Offensive Hacking 24 Relay Coupler Types 2 Relay Coupler Value 38 Authchip Count 2 Item Schematics ----------------- Beam Rifle | -9/Materials | Scanalyzed Hrd. Medium Armor Plating | -9/Materials | Scanalyzed Hacking Suite | -9/Materials | Scanalyzed Weight Redist. System | -9/Materials | Extracted Sml. Storage Unit | -9/Materials | Extracted Core Shielding | -9/Materials | Extracted Med. Laser | -9/Materials | Extracted Hrd. Light Armor Plating | -9/Materials | Extracted Hammer | -9/Materials | Extracted Com. Wheel | -9/Materials | Extracted Autogun | -9/Materials | Extracted Particle Cannon | -9/Materials | Extracted Hover Unit | -9/Materials | Extracted Targeting Computer | -9/Materials | Extracted Plasma Cutter | -9/Materials | Extracted Combat Drone Bay | -7/Data Miner | Free Lgt. Regenerative Plating | -7/Data Miner | Free Multireflex Exoskeleton | -7/Data Miner | Free Thermal Defense Suite | -7/Data Miner | Free Antimatter Cannon | -7/Data Miner | Free Thunder Leg | -7/Data Miner | Free Imp. Focal Shield | -7/Data Miner | Free Imp. Arc Projector | -7/Data Miner | Free Remote Shield | -7/Data Miner | Free Variable Charge Gun | -7/Data Miner | Free Railgun | -7/Data Miner | Free Centrium Heavy Treads | -4/Factory | Scanalyzed Lyr. Heavy Armor Plating | -4/Factory | Scanalyzed Rnf. Quantum Reactor | -4/Factory | Scanalyzed Robot Schematics ------------------ G-47 Trooper | -7/Data Miner | Free P-60 Hacker | -7/Data Miner | Free G-50 Soldier | -7/Data Miner | Free S-27 Virus | -7/Data Miner | Free Fabricated ------------ Powered Hammer | x2 | -7/Factory | Preloaded Centrium Heavy Treads | x1 | -3/Research | Authchip Repaired ---------- Lgt. Treads | 65% | -10/Materials Lgt. Treads | 42% | -9/Materials Lgt. Treads | 44% | -9/Materials Lgt. Treads | 65% | -9/Materials Imp. Powered Armor | 6% | -7/Factory | Broken Studied --------- Lgt. Treads | -8/Materials | Hacked Beam Rifle | -8/Materials | Hacked Autogun | -8/Materials | Hacked Imp. Treads | -7/Factory | Hacked Arm. Treads | -7/Factory | Hacked Rocket Launcher | -7/Factory | Hacked Powered Hammer | -7/Factory | Hacked Hvy. Ion Cannon | -6/Factory | Hacked Remote Datajack | -6/Factory | Hacked Plasma Rifle | -4/Factory | Hacked Rnf. Quantum Reactor | -3/Research | Hacked Enh. Nova Cannon | -2/Research | Hacked Particle Reactor | -2/Research | Hacked Quantum Reactor | -2/Research | Hacked Alien Tech Used ----------------- None Achievements -------------- None Challenges ------------ None Game ------ Seed LaunchSkeletonBox Manual? 0 Play Time 03:00:22 Cumulative 2122.4 hours Start 2026.02.10 @ 01:45:21 End 2026.02.10 @ 04:44:17 Sessions 1 Manual Loads 0 Difficulty Rogue Special Mode None Game No. 1355 Rogue 1351 Adventurer 4 Explorer 0 Win Type 0 Total 295 Types 223/13/22/11/3/1/4/10/5/3 Lore% 98 Gallery% 93 Achievement% 88 Wizard Run 0 Options --------- Layout 2 ASCII 1 Keyboard 1 Movement Vi Keybinds 0 Fullscreen 0 Font 24/Terminus Map View 59x48 Zoom Use 0% Tactical HUD 1 Map Filters NONE Filters NONE Steam 1 RUN: 1347338f-bcb0-4ecc-909c-c956080bd283